{"text_format":"1","workbook":"xlsx","n_sheets":7,"sheets":["Параметры","Печать","Расчет","Инструкция пользователя","Графики","ШаблонПечати","Справочник"],"not_rendered":{"charts":2,"images":5,"macros":1,"external_links":1,"defined_names":25,"comments":0,"pivot_tables":0},"unopened":[],"bounds":{"document_bytes":16777216,"sheet_cells":100000,"rows_first":2000,"rows_last":500,"rows_between":2000,"halvings":0,"cell_chars":16384,"cell_head_chars":4096},"cells_cut":0,"cells_raw":0,"read":"whole","date_system":"1900"}

{"sheet":"Параметры","index":0,"n_rows":53,"n_cols":12,"rows_kept":53,"cut":false,"hidden":false,"merged":[[1,1,1,7],[52,3,52,5],[31,3,31,5],[11,2,11,5],[22,2,22,5],[42,5,42,7]]}
[]
[null,"Расчетные параметры"]
[]
[null,null,null,"Дата выдачи кредита (займа)",null,"2017-10-01"]
[]
[]
[null,null,null,"Размер процентной ставки ",null,0.08]
[]
[null,null,null,"Срок кредита (займа) (мес.)",null,13]
[]
[]
[null,null,"Кредит (заем) за счет средств ЦЖЗ"]
[]
[null,null,null,"Максимальный размер кредита (займа), руб.",null,270000]
[]
[null,null,null,"Размер кредита (займа), руб.",null,270000,null,null," "]
[]
[null,null,null,"Фактический срок кредита (займа) (мес.)",null,13]
[]
[null,null,null,"Максимальный срок кредита (займа) (мес.)",null,13]
[]
[]
[null,null,"Дополнительный кредит (заем)"]
[]
[null,null,null,"Максимальная cумма допкредита (допзайма), руб",null,67254]
[]
[null,null,null,"Сумма допкредита (допзайма), руб",null,67254,null,null,null,null,null," "]
[]
[null,null,null,"Максимальный ежемесячный платеж по допкредиту (допзайму), руб *",null,5419.5]
[]
[null,null,null,"Ежемесячный платеж по допкредиту (допзайму), руб *",null,5419.5]
[null,null,null,"* не более 25% от 1/12 накопительного взноса на текущий год"]
[]
[null,null,null,"Cрок допкредита (допзайма) (мес.)",null,13]
[]
[]
[]
[null,null,null,null,null,null,null,null,2]
[]
[]
[]
[]
[null,null,"Расчет графика платежей"]
[]
[]
[]
[]
[]
[]
[]
[]
[]
[null,null,null,"Ќомер периода: 13, остаток задолженности: 0 руб."]

{"sheet":"Печать","index":1,"n_rows":29,"n_cols":20,"rows_kept":29,"cut":false,"hidden":false,"merged":[[9,3,9,6],[9,7,9,8],[11,3,11,6],[11,7,11,8],[13,0,13,15],[8,3,8,6],[0,0,0,12],[2,3,2,4],[2,5,2,9],[4,3,4,6],[4,7,4,8],[3,3,3,9],[7,7,7,8],[5,3,5,6],[5,7,5,8],[6,3,6,6],[6,7,6,8],[7,3,7,6],[8,7,8,8],[34,1,34,15],[30,1,30,15],[32,1,32,15],[10,3,10,6],[10,7,10,8]]}
["ГРАФИК ЕЖЕМЕСЯЧНЫХ ПЛАТЕЖЕЙ"]
[]
[null,null,null,"ФИО заемщика"]
[]
[null,null,null,"Сумма кредита (ЦЖЗ)",null,null,null,{"$f":"Параметры!F16","v":270000},null,"руб."]
[null,null,null,"Сумма допкредита (допзайма)",null,null,null,{"$f":"Параметры!F27","v":67254},null,"руб."]
[null,null,null,"Дата выдачи кредита (займа)",null,null,null,{"$f":"Параметры!F4","v":"2017-10-01"}]
[null,null,null,"Процентная ставка ",null,null,null,{"$f":"Справочник!E17","v":0.08},null,"годовых"]
[null,null,null,"Срок кредита (займа)",null,null,null,{"$f":"Параметры!F9","v":13},null,"мес."]
[null,null,null,"Расчетная дата",null,null,null,"???"]
[]
[null,null,null,"Ежемесячный платеж за счет собственных средств",null,null,null,{"$f":"Параметры!F31","v":5419.5},null,"руб."]
[]
[]
["Платеж-ный период","Последняя дата платежа","Кол-во дней в платеж-ном периоде","Процентная ставка","ООД на начало периода","Ежемесяч-ный платеж","Платеж за счет средств ЦЖЗ","Платеж за счет собственных средств","Начисленные % по основному долгу","Погашение %","Погашениеосновного долга","ООД на конец периода","Плановая накопленная процентная задолженность на начало периода","Начисленные проценты по рассрочке","Плановая процентная задолженность (Рост (+) / погашение (-))","Плановая накопленная процентная задолженность на конец периода","Фактические платежи \nЦЖЗ","Частичное-досрочное погашение за счет средств ЦЖЗ","Фактические платежи за счет собственных средств","Частичное-досрочное погашение за счетсобственных средств"]
[1,2,3,4,5,6,7,8,9,10,11,12,13,14,15,16,17,18,19,20]
[1,"2017-10-31",30,0.08,337254,0,0,0,2217.56,0,0,337254,0,0,0,0]
[2,"2017-11-30",30,0.08,337254,54195,43356,10839,2217.56,4435.12,49759.88,287494.12,0,0,0,0]
[3,"2017-12-31",31,0.08,287494.12,27097.5,21678,5419.5,1953.3799999999999,1953.3799999999999,25144.12,262350,0,0,0,0]
[4,"2018-01-31",31,0.08,262350,27097.5,21678,5419.5,1782.54,1782.54,25314.959999999999,237035.04,0,0,0,0]
[5,"2018-02-28",28,0.08,237035.04,27097.5,21678,5419.5,1454.68,1454.68,25642.82,211392.22,0,0,0,0]
[6,"2018-03-31",31,0.08,211392.22,27097.5,21678,5419.5,1436.31,1436.31,25661.19,185731.03,0,0,0,0]
[7,"2018-04-30",30,0.08,185731.03,27097.5,21678,5419.5,1221.24,1221.24,25876.260000000002,159854.76999999999,0,0,0,0]
[8,"2018-05-31",31,0.08,159854.76999999999,27097.5,21678,5419.5,1086.1399999999999,1086.1399999999999,26011.360000000001,133843.41,0,0,0,0]
[9,"2018-06-30",30,0.08,133843.41,27097.5,21678,5419.5,880.06999999999994,880.06999999999994,26217.43,107625.98,0,0,0,0]
[10,"2018-07-31",31,0.08,107625.98,27097.5,21678,5419.5,731.26,731.26,26366.239999999998,81259.740000000005,0,0,0,0]
[11,"2018-08-31",31,0.08,81259.740000000005,27097.5,21678,5419.5,552.13,552.13,26545.37,54714.37,0,0,0,0]
[12,"2018-09-30",30,0.08,54714.37,27097.5,21678,5419.5,359.76,359.76,26737.739999999998,27976.63,0,0,0,0]
[13,"2018-10-31",31,0.08,27976.63,28166.720000000001,22747.9,5418.82,190.09,190.09,27976.63,0,0,0,0,0]

{"sheet":"Расчет","index":2,"n_rows":404,"n_cols":41,"rows_kept":404,"cut":false,"hidden":false,"merged":[[0,0,0,12],[0,13,0,18],[0,24,0,29]]}
["Сводный информационный расчет",null,null,null,null,null,null,null,null,null,null,null,null,"Кредит (займ) по ЦЖЗ",null,null,null,null,null,null,null,null,null,null,"Дополнительный кредит",null,null,null,null,null,null,null,null,null,null," "]
["Номер платежного периода"," Платежный период","ООД на начало периода","Платеж по кредиту","Начислен-ные проценты по основному долгу","Погашение %","Погашение основного долга","ООД на конец периода","Плановая накопленная процентная задолженность на начало периода","Начисленные проценты по рассрочке","Уплаченные проценты по накоплен-ной процентной задолжен-ности","Рост (+) / погашение (-) задолженности","Плановая накопленная процентная задолженность на конец периода","ООД на начало периода","Платеж по кредиту","Начисленные % по основному долгу","Погашение %","Погашениеосновного долга","ООД на конец периода","Плановая накопленная процентная задолженность на начало периода","Начисленные проценты по рассрочке","Уплаченные проценты по накоплен-ной процентной задолжен-ности","Рост (+) / погашение (-) задолженности","Плановая накопленная процентная задолженность на конец периода","ООД на начало периода","Платеж по кредиту","Начисленные % по основному долгу","Погашение %","Погашениеосновного долга","ООД на конец периода","Плановая накопленная процентная задолженность на начало периода","Начисленные проценты по рассрочке","Уплаченные проценты по накоплен-ной процентной задолжен-ности","Рост (+) / погашение (-) задолженности","Плановая накопленная процентная задолженность на конец периода","Кол-во дней в платеж-ном периоде"]
[1,2,3,4,5,6,7,8,9,10,11,12,13,14,15,16,17,18,19,20,21,22,23,24,25,26,27,28,29,30,31,32,33,34,35,36]
[1,"2017-10-31",337254,0,2217.56,0,0,337254,0,0,0,0,0,270000,0,1775.34,null,null,270000,0,0,null,null,0,67254,0,442.22,null,null,67254,0,0,null,null,0,30,null,null,null,null,{"$f":"IF(L4>0,0,-L4)","v":0}]
[2,"2017-11-30",337254,54195,2217.56,4435.12,49759.88,287494.12,0,0,0,0,0,270000,43356,1775.34,3550.68,39805.32,230194.68,0,0,0,0,0,67254,10839,442.22,884.44,9954.56,57299.44,0,0,0,0,0,30,null,null,null,null,{"$f":"IF(L5>0,0,-L5)","v":0}]
[3,"2017-12-31",287494.12,27097.5,1953.3799999999999,1953.3799999999999,25144.12,262350,0,0,0,0,0,230194.68,21678,1564.06,1564.06,20113.939999999999,210080.74,0,0,0,0,0,57299.44,5419.5,389.32,389.32,5030.18,52269.26,0,0,0,0,0,31,null,null,null,null,{"$f":"IF(L6>0,0,-L6)","v":0}]
[4,"2018-01-31",262350,27097.5,1782.54,1782.54,25314.959999999999,237035.04,0,0,0,0,0,210080.74,21678,1427.4,1427.4,20250.599999999999,189830.14,0,0,0,0,0,52269.26,5419.5,355.14,355.14,5064.3599999999997,47204.9,0,0,0,0,0,31,null,null,null,null,{"$f":"IF(L7>0,0,-L7)","v":0}]
[5,"2018-02-28",237035.04,27097.5,1454.68,1454.68,25642.82,211392.22,0,0,0,0,0,189830.14,21678,1164.98,1164.98,20513.02,169317.12,0,0,0,0,0,47204.9,5419.5,289.7,289.7,5129.8,42075.1,0,0,0,0,0,28,null,null,null,null,{"$f":"IF(L8>0,0,-L8)","v":0}]
[6,"2018-03-31",211392.22,27097.5,1436.31,1436.31,25661.19,185731.03,0,0,0,0,0,169317.12,21678,1150.43,1150.43,20527.57,148789.54999999999,0,0,0,0,0,42075.1,5419.5,285.88,285.88,5133.62,36941.480000000003,0,0,0,0,0,31,null,null,null,null,{"$f":"IF(L9>0,0,-L9)","v":0}]
[7,"2018-04-30",185731.03,27097.5,1221.24,1221.24,25876.260000000002,159854.76999999999,0,0,0,0,0,148789.54999999999,21678,978.34,978.34,20699.66,128089.89,0,0,0,0,0,36941.480000000003,5419.5,242.9,242.9,5176.6000000000004,31764.880000000001,0,0,0,0,0,30,null,null,null,null,0]
[8,"2018-05-31",159854.76999999999,27097.5,1086.1399999999999,1086.1399999999999,26011.360000000001,133843.41,0,0,0,0,0,128089.89,21678,870.31,870.31,20807.689999999999,107282.2,0,0,0,0,0,31764.880000000001,5419.5,215.83,215.83,5203.67,26561.21,0,0,0,0,0,31,null,null,null,null,0]
[9,"2018-06-30",133843.41,27097.5,880.06999999999994,880.06999999999994,26217.43,107625.98,0,0,0,0,0,107282.2,21678,705.42,705.42,20972.58,86309.62,0,0,0,0,0,26561.21,5419.5,174.65,174.65,5244.85,21316.36,0,0,0,0,0,30,null,null,null,null,0]
[10,"2018-07-31",107625.98,27097.5,731.26,731.26,26366.239999999998,81259.740000000005,0,0,0,0,0,86309.62,21678,586.42999999999995,586.42999999999995,21091.57,65218.05,0,0,0,0,0,21316.36,5419.5,144.83000000000001,144.83000000000001,5274.67,16041.69,0,0,0,0,0,31,null,null,null,null,0]
[11,"2018-08-31",81259.740000000005,27097.5,552.13,552.13,26545.37,54714.37,0,0,0,0,0,65218.05,21678,443.13,443.13,21234.87,43983.18,0,0,0,0,0,16041.69,5419.5,109,109,5310.5,10731.19,0,0,0,0,0,31,null,null,null,null,0]
[12,"2018-09-30",54714.37,27097.5,359.76,359.76,26737.739999999998,27976.63,0,0,0,0,0,43983.18,21678,289.2,289.2,21388.799999999999,22594.38,0,0,0,0,0,10731.19,5419.5,70.56,70.56,5348.94,5382.25,0,0,0,0,0,30,null,null,null,null,{"$f":"IF(L15>0,0,-L15)","v":0}]
[13,"2018-10-31",27976.63,28166.720000000001,190.09,190.09,27976.63,0,0,0,0,0,0,22594.38,22747.9,153.52000000000001,153.52000000000001,22594.38,0,0,0,0,0,0,5382.25,5418.82,36.57,36.57,5382.25,0,0,0,0,0,0,31,null,null,null,null,0]
[null,null,null,null,null,null,null,null,null,null,null,null,null,null,null,null,null,null,null,null,null,null,null,null,null,null,null,null,null,null,null,null,null,null,null,null,null,null,null,null,0]
[null,null,null,null,null,null,null,null,null,null,null,null,null,null,null,null,null,null,null,null,null,null,null,null,null,null,null,null,null,null,null,null,null,null,null,null,null,null,null,null,0]
[null,null,null,null,null,null,null,null,null,null,null,null,null,null,null,null,null,null,null,null,null,null,null,null,null,null,null,null,null,null,null,null,null,null,null,null,null,null,null,null,0]
[null,null,null,null,null,null,null,null,null,null,null,null,null,null,null,null,null,null,null,null,null,null,null,null,null,null,null,null,null,null,null,null,null,null,null,null,null,null,null,null,0]
[null,null,null,null,null,null,null,null,null,null,null,null,null,null,null,null,null,null,null,null,null,null,null,null,null,null,null,null,null,null,null,null,null,null,null,null,null,null,null,null,0]
[null,null,null,null,null,null,null,null,null,null,null,null,null,null,null,null,null,null,null,null,null,null,null,null,null,null,null,null,null,null,null,null,null,null,null,null,null,null,null,null,0]
[null,null,null,null,null,null,null,null,null,null,null,null,null,null,null,null,null,null,null,null,null,null,null,null,null,null,null,null,null,null,null,null,null,null,null,null,null,null,null,null,0]
[null,null,null,null,null,null,null,null,null,null,null,null,null,null,null,null,null,null,null,null,null,null,null,null,null,null,null,null,null,null,null,null,null,null,null,null,null,null,null,null,0]
[null,null,null,null,null,null,null,null,null,null,null,null,null,null,null,null,null,null,null,null,null,null,null,null,null,null,null,null,null,null,null,null,null,null,null,null,null,null,null,null,0]
[null,null,null,null,null,null,null,null,null,null,null,null,null,null,null,null,null,null,null,null,null,null,null,null,null,null,null,null,null,null,null,null,null,null,null,null,null,null,null,null,0]
[null,null,null,null,null,null,null,null,null,null,null,null,null,null,null,null,null,null,null,null,null,null,null,null,null,null,null,null,null,null,null,null,null,null,null,null,null,null,null,null,{"$f":"IF(L27>0,0,-L27)","v":0}]
[null,null,null,null,null,null,null,null,null,null,null,null,null,null,null,null,null,null,null,null,null,null,null,null,null,null,null,null,null,null,null,null,null,null,null,null,null,null,null,null,0]
[null,null,null,null,null,null,null,null,null,null,null,null,null,null,null,null,null,null,null,null,null,null,null,null,null,null,null,null,null,null,null,null,null,null,null,null,null,null,null,null,0]
[null,null,null,null,null,null,null,null,null,null,null,null,null,null,null,null,null,null,null,null,null,null,null,null,null,null,null,null,null,null,null,null,null,null,null,null,null,null,null,null,0]
[null,null,null,null,null,null,null,null,null,null,null,null,null,null,null,null,null,null,null,null,null,null,null,null,null,null,null,null,null,null,null,null,null,null,null,null,null,null,null,null,0]
[null,null,null,null,null,null,null,null,null,null,null,null,null,null,null,null,null,null,null,null,null,null,null,null,null,null,null,null,null,null,null,null,null,null,null,null,null,null,null,null,0]
[null,null,null,null,null,null,null,null,null,null,null,null,null,null,null,null,null,null,null,null,null,null,null,null,null,null,null,null,null,null,null,null,null,null,null,null,null,null,null,null,0]
[null,null,null,null,null,null,null,null,null,null,null,null,null,null,null,null,null,null,null,null,null,null,null,null,null,null,null,null,null,null,null,null,null,null,null,null,null,null,null,null,0]
[null,null,null,null,null,null,null,null,null,null,null,null,null,null,null,null,null,null,null,null,null,null,null,null,null,null,null,null,null,null,null,null,null,null,null,null,null,null,null,null,0]
[null,null,null,null,null,null,null,null,null,null,null,null,null,null,null,null,null,null,null,null,null,null,null,null,null,null,null,null,null,null,null,null,null,null,null,null,null,null,null,null,0]
[null,null,null,null,null,null,null,null,null,null,null,null,null,null,null,null,null,null,null,null,null,null,null,null,null,null,null,null,null,null,null,null,null,null,null,null,null,null,null,null,0]
[null,null,null,null,null,null,null,null,null,null,null,null,null,null,null,null,null,null,null,null,null,null,null,null,null,null,null,null,null,null,null,null,null,null,null,null,null,null,null,null,0]
[null,null,null,null,null,null,null,null,null,null,null,null,null,null,null,null,null,null,null,null,null,null,null,null,null,null,null,null,null,null,null,null,null,null,null,null,null,null,null,null,0]
[null,null,null,null,null,null,null,null,null,null,null,null,null,null,null,null,null,null,null,null,null,null,null,null,null,null,null,null,null,null,null,null,null,null,null,null,null,null,null,null,0]
[null,null,null,null,null,null,null,null,null,null,null,null,null,null,null,null,null,null,null,null,null,null,null,null,null,null,null,null,null,null,null,null,null,null,null,null,null,null,null,null,0]
[null,null,null,null,null,null,null,null,null,null,null,null,null,null,null,null,null,null,null,null,null,null,null,null,null,null,null,null,null,null,null,null,null,null,null,null,null,null,null,null,0]
[null,null,null,null,null,null,null,null,null,null,null,null,null,null,null,null,null,null,null,null,null,null,null,null,null,null,null,null,null,null,null,null,null,null,null,null,null,null,null,null,0]
[null,null,null,null,null,null,null,null,null,null,null,null,null,null,null,null,null,null,null,null,null,null,null,null,null,null,null,null,null,null,null,null,null,null,null,null,null,null,null,null,0]
[null,null,null,null,null,null,null,null,null,null,null,null,null,null,null,null,null,null,null,null,null,null,null,null,null,null,null,null,null,null,null,null,null,null,null,null,null,null,null,null,0]
[null,null,null,null,null,null,null,null,null,null,null,null,null,null,null,null,null,null,null,null,null,null,null,null,null,null,null,null,null,null,null,null,null,null,null,null,null,null,null,null,0]
[null,null,null,null,null,null,null,null,null,null,null,null,null,null,null,null,null,null,null,null,null,null,null,null,null,null,null,null,null,null,null,null,null,null,null,null,null,null,null,null,0]
[null,null,null,null,null,null,null,null,null,null,null,null,null,null,null,null,null,null,null,null,null,null,null,null,null,null,null,null,null,null,null,null,null,null,null,null,null,null,null,null,0]
[null,null,null,null,null,null,null,null,null,null,null,null,null,null,null,null,null,null,null,null,null,null,null,null,null,null,null,null,null,null,null,null,null,null,null,null,null,null,null,null,0]
[null,null,null,null,null,null,null,null,null,null,null,null,null,null,null,null,null,null,null,null,null,null,null,null,null,null,null,null,null,null,null,null,null,null,null,null,null,null,null,null,0]
[null,null,null,null,null,null,null,null,null,null,null,null,null,null,null,null,null,null,null,null,null,null,null,null,null,null,null,null,null,null,null,null,null,null,null,null,null,null,null,null,{"$f":"IF(L51>0,0,-L51)","v":0}]
[null,null,null,null,null,null,null,null,null,null,null,null,null,null,null,null,null,null,null,null,null,null,null,null,null,null,null,null,null,null,null,null,null,null,null,null,null,null,null,null,0]
[null,null,null,null,null,null,null,null,null,null,null,null,null,null,null,null,null,null,null,null,null,null,null,null,null,null,null,null,null,null,null,null,null,null,null,null,null,null,null,null,0]
[null,null,null,null,null,null,null,null,null,null,null,null,null,null,null,null,null,null,null,null,null,null,null,null,null,null,null,null,null,null,null,null,null,null,null,null,null,null,null,null,0]
[null,null,null,null,null,null,null,null,null,null,null,null,null,null,null,null,null,null,null,null,null,null,null,null,null,null,null,null,null,null,null,null,null,null,null,null,null,null,null,null,0]
[null,null,null,null,null,null,null,null,null,null,null,null,null,null,null,null,null,null,null,null,null,null,null,null,null,null,null,null,null,null,null,null,null,null,null,null,null,null,null,null,0]
[null,null,null,null,null,null,null,null,null,null,null,null,null,null,null,null,null,null,null,null,null,null,null,null,null,null,null,null,null,null,null,null,null,null,null,null,null,null,null,null,0]
[null,null,null,null,null,null,null,null,null,null,null,null,null,null,null,null,null,null,null,null,null,null,null,null,null,null,null,null,null,null,null,null,null,null,null,null,null,null,null,null,0]
[null,null,null,null,null,null,null,null,null,null,null,null,null,null,null,null,null,null,null,null,null,null,null,null,null,null,null,null,null,null,null,null,null,null,null,null,null,null,null,null,0]
[null,null,null,null,null,null,null,null,null,null,null,null,null,null,null,null,null,null,null,null,null,null,null,null,null,null,null,null,null,null,null,null,null,null,null,null,null,null,null,null,0]
[null,null,null,null,null,null,null,null,null,null,null,null,null,null,null,null,null,null,null,null,null,null,null,null,null,null,null,null,null,null,null,null,null,null,null,null,null,null,null,null,0]
[null,null,null,null,null,null,null,null,null,null,null,null,null,null,null,null,null,null,null,null,null,null,null,null,null,null,null,null,null,null,null,null,null,null,null,null,null,null,null,null,0]
[null,null,null,null,null,null,null,null,null,null,null,null,null,null,null,null,null,null,null,null,null,null,null,null,null,null,null,null,null,null,null,null,null,null,null,null,null,null,null,null,0]
[null,null,null,null,null,null,null,null,null,null,null,null,null,null,null,null,null,null,null,null,null,null,null,null,null,null,null,null,null,null,null,null,null,null,null,null,null,null,null,null,0]
[null,null,null,null,null,null,null,null,null,null,null,null,null,null,null,null,null,null,null,null,null,null,null,null,null,null,null,null,null,null,null,null,null,null,null,null,null,null,null,null,0]
[null,null,null,null,null,null,null,null,null,null,null,null,null,null,null,null,null,null,null,null,null,null,null,null,null,null,null,null,null,null,null,null,null,null,null,null,null,null,null,null,0]
[null,null,null,null,null,null,null,null,null,null,null,null,null,null,null,null,null,null,null,null,null,null,null,null,null,null,null,null,null,null,null,null,null,null,null,null,null,null,null,null,0]
[null,null,null,null,null,null,null,null,null,null,null,null,null,null,null,null,null,null,null,null,null,null,null,null,null,null,null,null,null,null,null,null,null,null,null,null,null,null,null,null,0]
[null,null,null,null,null,null,null,null,null,null,null,null,null,null,null,null,null,null,null,null,null,null,null,null,null,null,null,null,null,null,null,null,null,null,null,null,null,null,null,null,0]
[null,null,null,null,null,null,null,null,null,null,null,null,null,null,null,null,null,null,null,null,null,null,null,null,null,null,null,null,null,null,null,null,null,null,null,null,null,null,null,null,0]
[null,null,null,null,null,null,null,null,null,null,null,null,null,null,null,null,null,null,null,null,null,null,null,null,null,null,null,null,null,null,null,null,null,null,null,null,null,null,null,null,0]
[null,null,null,null,null,null,null,null,null,null,null,null,null,null,null,null,null,null,null,null,null,null,null,null,null,null,null,null,null,null,null,null,null,null,null,null,null,null,null,null,0]
[null,null,null,null,null,null,null,null,null,null,null,null,null,null,null,null,null,null,null,null,null,null,null,null,null,null,null,null,null,null,null,null,null,null,null,null,null,null,null,null,0]
[null,null,null,null,null,null,null,null,null,null,null,null,null,null,null,null,null,null,null,null,null,null,null,null,null,null,null,null,null,null,null,null,null,null,null,null,null,null,null,null,0]
[null,null,null,null,null,null,null,null,null,null,null,null,null,null,null,null,null,null,null,null,null,null,null,null,null,null,null,null,null,null,null,null,null,null,null,null,null,null,null,null,0]
[null,null,null,null,null,null,null,null,null,null,null,null,null,null,null,null,null,null,null,null,null,null,null,null,null,null,null,null,null,null,null,null,null,null,null,null,null,null,null,null,0]
[null,null,null,null,null,null,null,null,null,null,null,null,null,null,null,null,null,null,null,null,null,null,null,null,null,null,null,null,null,null,null,null,null,null,null,null,null,null,null,null,0]
[null,null,null,null,null,null,null,null,null,null,null,null,null,null,null,null,null,null,null,null,null,null,null,null,null,null,null,null,null,null,null,null,null,null,null,null,null,null,null,null,0]
[null,null,null,null,null,null,null,null,null,null,null,null,null,null,null,null,null,null,null,null,null,null,null,null,null,null,null,null,null,null,null,null,null,null,null,null,null,null,null,null,0]
[null,null,null,null,null,null,null,null,null,null,null,null,null,null,null,null,null,null,null,null,null,null,null,null,null,null,null,null,null,null,null,null,null,null,null,null,null,null,null,null,0]
[null,null,null,null,null,null,null,null,null,null,null,null,null,null,null,null,null,null,null,null,null,null,null,null,null,null,null,null,null,null,null,null,null,null,null,null,null,null,null,null,0]
[null,null,null,null,null,null,null,null,null,null,null,null,null,null,null,null,null,null,null,null,null,null,null,null,null,null,null,null,null,null,null,null,null,null,null,null,null,null,null,null,0]
[null,null,null,null,null,null,null,null,null,null,null,null,null,null,null,null,null,null,null,null,null,null,null,null,null,null,null,null,null,null,null,null,null,null,null,null,null,null,null,null,0]
[null,null,null,null,null,null,null,null,null,null,null,null,null,null,null,null,null,null,null,null,null,null,null,null,null,null,null,null,null,null,null,null,null,null,null,null,null,null,null,null,0]
[null,null,null,null,null,null,null,null,null,null,null,null,null,null,null,null,null,null,null,null,null,null,null,null,null,null,null,null,null,null,null,null,null,null,null,null,null,null,null,null,0]
[null,null,null,null,null,null,null,null,null,null,null,null,null,null,null,null,null,null,null,null,null,null,null,null,null,null,null,null,null,null,null,null,null,null,null,null,null,null,null,null,0]
[null,null,null,null,null,null,null,null,null,null,null,null,null,null,null,null,null,null,null,null,null,null,null,null,null,null,null,null,null,null,null,null,null,null,null,null,null,null,null,null,0]
[null,null,null,null,null,null,null,null,null,null,null,null,null,null,null,null,null,null,null,null,null,null,null,null,null,null,null,null,null,null,null,null,null,null,null,null,null,null,null,null,0]
[null,null,null,null,null,null,null,null,null,null,null,null,null,null,null,null,null,null,null,null,null,null,null,null,null,null,null,null,null,null,null,null,null,null,null,null,null,null,null,null,0]
[null,null,null,null,null,null,null,null,null,null,null,null,null,null,null,null,null,null,null,null,null,null,null,null,null,null,null,null,null,null,null,null,null,null,null,null,null,null,null,null,0]
[null,null,null,null,null,null,null,null,null,null,null,null,null,null,null,null,null,null,null,null,null,null,null,null,null,null,null,null,null,null,null,null,null,null,null,null,null,null,null,null,0]
[null,null,null,null,null,null,null,null,null,null,null,null,null,null,null,null,null,null,null,null,null,null,null,null,null,null,null,null,null,null,null,null,null,null,null,null,null,null,null,null,0]
[null,null,null,null,null,null,null,null,null,null,null,null,null,null,null,null,null,null,null,null,null,null,null,null,null,null,null,null,null,null,null,null,null,null,null,null,null,null,null,null,0]
[null,null,null,null,null,null,null,null,null,null,null,null,null,null,null,null,null,null,null,null,null,null,null,null,null,null,null,null,null,null,null,null,null,null,null,null,null,null,null,null,0]
[null,null,null,null,null,null,null,null,null,null,null,null,null,null,null,null,null,null,null,null,null,null,null,null,null,null,null,null,null,null,null,null,null,null,null,null,null,null,null,null,0]
[null,null,null,null,null,null,null,null,null,null,null,null,null,null,null,null,null,null,null,null,null,null,null,null,null,null,null,null,null,null,null,null,null,null,null,null,null,null,null,null,0]
[null,null,null,null,null,null,null,null,null,null,null,null,null,null,null,null,null,null,null,null,null,null,null,null,null,null,null,null,null,null,null,null,null,null,null,null,null,null,null,null,0]
[null,null,null,null,null,null,null,null,null,null,null,null,null,null,null,null,null,null,null,null,null,null,null,null,null,null,null,null,null,null,null,null,null,null,null,null,null,null,null,null,0]
[null,null,null,null,null,null,null,null,null,null,null,null,null,null,null,null,null,null,null,null,null,null,null,null,null,null,null,null,null,null,null,null,null,null,null,null,null,null,null,null,{"$f":"IF(L99>0,0,-L99)","v":0}]
[null,null,null,null,null,null,null,null,null,null,null,null,null,null,null,null,null,null,null,null,null,null,null,null,null,null,null,null,null,null,null,null,null,null,null,null,null,null,null,null,0]
[null,null,null,null,null,null,null,null,null,null,null,null,null,null,null,null,null,null,null,null,null,null,null,null,null,null,null,null,null,null,null,null,null,null,null,null,null,null,null,null,0]
[null,null,null,null,null,null,null,null,null,null,null,null,null,null,null,null,null,null,null,null,null,null,null,null,null,null,null,null,null,null,null,null,null,null,null,null,null,null,null,null,0]
[null,null,null,null,null,null,null,null,null,null,null,null,null,null,null,null,null,null,null,null,null,null,null,null,null,null,null,null,null,null,null,null,null,null,null,null,null,null,null,null,0]
[null,null,null,null,null,null,null,null,null,null,null,null,null,null,null,null,null,null,null,null,null,null,null,null,null,null,null,null,null,null,null,null,null,null,null,null,null,null,null,null,0]
[null,null,null,null,null,null,null,null,null,null,null,null,null,null,null,null,null,null,null,null,null,null,null,null,null,null,null,null,null,null,null,null,null,null,null,null,null,null,null,null,0]
[null,null,null,null,null,null,null,null,null,null,null,null,null,null,null,null,null,null,null,null,null,null,null,null,null,null,null,null,null,null,null,null,null,null,null,null,null,null,null,null,0]
[null,null,null,null,null,null,null,null,null,null,null,null,null,null,null,null,null,null,null,null,null,null,null,null,null,null,null,null,null,null,null,null,null,null,null,null,null,null,null,null,0]
[null,null,null,null,null,null,null,null,null,null,null,null,null,null,null,null,null,null,null,null,null,null,null,null,null,null,null,null,null,null,null,null,null,null,null,null,null,null,null,null,0]
[null,null,null,null,null,null,null,null,null,null,null,null,null,null,null,null,null,null,null,null,null,null,null,null,null,null,null,null,null,null,null,null,null,null,null,null,null,null,null,null,0]
[null,null,null,null,null,null,null,null,null,null,null,null,null,null,null,null,null,null,null,null,null,null,null,null,null,null,null,null,null,null,null,null,null,null,null,null,null,null,null,null,0]
[null,null,null,null,null,null,null,null,null,null,null,null,null,null,null,null,null,null,null,null,null,null,null,null,null,null,null,null,null,null,null,null,null,null,null,null,null,null,null,null,0]
[null,null,null,null,null,null,null,null,null,null,null,null,null,null,null,null,null,null,null,null,null,null,null,null,null,null,null,null,null,null,null,null,null,null,null,null,null,null,null,null,0]
[null,null,null,null,null,null,null,null,null,null,null,null,null,null,null,null,null,null,null,null,null,null,null,null,null,null,null,null,null,null,null,null,null,null,null,null,null,null,null,null,0]
[null,null,null,null,null,null,null,null,null,null,null,null,null,null,null,null,null,null,null,null,null,null,null,null,null,null,null,null,null,null,null,null,null,null,null,null,null,null,null,null,0]
[null,null,null,null,null,null,null,null,null,null,null,null,null,null,null,null,null,null,null,null,null,null,null,null,null,null,null,null,null,null,null,null,null,null,null,null,null,null,null,null,0]
[null,null,null,null,null,null,null,null,null,null,null,null,null,null,null,null,null,null,null,null,null,null,null,null,null,null,null,null,null,null,null,null,null,null,null,null,null,null,null,null,0]
[null,null,null,null,null,null,null,null,null,null,null,null,null,null,null,null,null,null,null,null,null,null,null,null,null,null,null,null,null,null,null,null,null,null,null,null,null,null,null,null,0]
[null,null,null,null,null,null,null,null,null,null,null,null,null,null,null,null,null,null,null,null,null,null,null,null,null,null,null,null,null,null,null,null,null,null,null,null,null,null,null,null,0]
[null,null,null,null,null,null,null,null,null,null,null,null,null,null,null,null,null,null,null,null,null,null,null,null,null,null,null,null,null,null,null,null,null,null,null,null,null,null,null,null,0]
[null,null,null,null,null,null,null,null,null,null,null,null,null,null,null,null,null,null,null,null,null,null,null,null,null,null,null,null,null,null,null,null,null,null,null,null,null,null,null,null,0]
[null,null,null,null,null,null,null,null,null,null,null,null,null,null,null,null,null,null,null,null,null,null,null,null,null,null,null,null,null,null,null,null,null,null,null,null,null,null,null,null,0]
[null,null,null,null,null,null,null,null,null,null,null,null,null,null,null,null,null,null,null,null,null,null,null,null,null,null,null,null,null,null,null,null,null,null,null,null,null,null,null,null,0]
[null,null,null,null,null,null,null,null,null,null,null,null,null,null,null,null,null,null,null,null,null,null,null,null,null,null,null,null,null,null,null,null,null,null,null,null,null,null,null,null,0]
[null,null,null,null,null,null,null,null,null,null,null,null,null,null,null,null,null,null,null,null,null,null,null,null,null,null,null,null,null,null,null,null,null,null,null,null,null,null,null,null,0]
[null,null,null,null,null,null,null,null,null,null,null,null,null,null,null,null,null,null,null,null,null,null,null,null,null,null,null,null,null,null,null,null,null,null,null,null,null,null,null,null,0]
[null,null,null,null,null,null,null,null,null,null,null,null,null,null,null,null,null,null,null,null,null,null,null,null,null,null,null,null,null,null,null,null,null,null,null,null,null,null,null,null,0]
[null,null,null,null,null,null,null,null,null,null,null,null,null,null,null,null,null,null,null,null,null,null,null,null,null,null,null,null,null,null,null,null,null,null,null,null,null,null,null,null,0]
[null,null,null,null,null,null,null,null,null,null,null,null,null,null,null,null,null,null,null,null,null,null,null,null,null,null,null,null,null,null,null,null,null,null,null,null,null,null,null,null,0]
[null,null,null,null,null,null,null,null,null,null,null,null,null,null,null,null,null,null,null,null,null,null,null,null,null,null,null,null,null,null,null,null,null,null,null,null,null,null,null,null,0]
[null,null,null,null,null,null,null,null,null,null,null,null,null,null,null,null,null,null,null,null,null,null,null,null,null,null,null,null,null,null,null,null,null,null,null,null,null,null,null,null,0]
[null,null,null,null,null,null,null,null,null,null,null,null,null,null,null,null,null,null,null,null,null,null,null,null,null,null,null,null,null,null,null,null,null,null,null,null,null,null,null,null,0]
[null,null,null,null,null,null,null,null,null,null,null,null,null,null,null,null,null,null,null,null,null,null,null,null,null,null,null,null,null,null,null,null,null,null,null,null,null,null,null,null,0]
[null,null,null,null,null,null,null,null,null,null,null,null,null,null,null,null,null,null,null,null,null,null,null,null,null,null,null,null,null,null,null,null,null,null,null,null,null,null,null,null,0]
[null,null,null,null,null,null,null,null,null,null,null,null,null,null,null,null,null,null,null,null,null,null,null,null,null,null,null,null,null,null,null,null,null,null,null,null,null,null,null,null,0]
[null,null,null,null,null,null,null,null,null,null,null,null,null,null,null,null,null,null,null,null,null,null,null,null,null,null,null,null,null,null,null,null,null,null,null,null,null,null,null,null,0]
[null,null,null,null,null,null,null,null,null,null,null,null,null,null,null,null,null,null,null,null,null,null,null,null,null,null,null,null,null,null,null,null,null,null,null,null,null,null,null,null,0]
[null,null,null,null,null,null,null,null,null,null,null,null,null,null,null,null,null,null,null,null,null,null,null,null,null,null,null,null,null,null,null,null,null,null,null,null,null,null,null,null,0]
[null,null,null,null,null,null,null,null,null,null,null,null,null,null,null,null,null,null,null,null,null,null,null,null,null,null,null,null,null,null,null,null,null,null,null,null,null,null,null,null,0]
[null,null,null,null,null,null,null,null,null,null,null,null,null,null,null,null,null,null,null,null,null,null,null,null,null,null,null,null,null,null,null,null,null,null,null,null,null,null,null,null,0]
[null,null,null,null,null,null,null,null,null,null,null,null,null,null,null,null,null,null,null,null,null,null,null,null,null,null,null,null,null,null,null,null,null,null,null,null,null,null,null,null,0]
[null,null,null,null,null,null,null,null,null,null,null,null,null,null,null,null,null,null,null,null,null,null,null,null,null,null,null,null,null,null,null,null,null,null,null,null,null,null,null,null,0]
[null,null,null,null,null,null,null,null,null,null,null,null,null,null,null,null,null,null,null,null,null,null,null,null,null,null,null,null,null,null,null,null,null,null,null,null,null,null,null,null,0]
[null,null,null,null,null,null,null,null,null,null,null,null,null,null,null,null,null,null,null,null,null,null,null,null,null,null,null,null,null,null,null,null,null,null,null,null,null,null,null,null,0]
[null,null,null,null,null,null,null,null,null,null,null,null,null,null,null,null,null,null,null,null,null,null,null,null,null,null,null,null,null,null,null,null,null,null,null,null,null,null,null,null,0]
[null,null,null,null,null,null,null,null,null,null,null,null,null,null,null,null,null,null,null,null,null,null,null,null,null,null,null,null,null,null,null,null,null,null,null,null,null,null,null,null,0]
[null,null,null,null,null,null,null,null,null,null,null,null,null,null,null,null,null,null,null,null,null,null,null,null,null,null,null,null,null,null,null,null,null,null,null,null,null,null,null,null,0]
[null,null,null,null,null,null,null,null,null,null,null,null,null,null,null,null,null,null,null,null,null,null,null,null,null,null,null,null,null,null,null,null,null,null,null,null,null,null,null,null,{"$f":"IF(L147>0,0,-L147)","v":0}]
[null,null,null,null,null,null,null,null,null,null,null,null,null,null,null,null,null,null,null,null,null,null,null,null,null,null,null,null,null,null,null,null,null,null,null,null,null,null,null,null,0]
[null,null,null,null,null,null,null,null,null,null,null,null,null,null,null,null,null,null,null,null,null,null,null,null,null,null,null,null,null,null,null,null,null,null,null,null,null,null,null,null,0]
[null,null,null,null,null,null,null,null,null,null,null,null,null,null,null,null,null,null,null,null,null,null,null,null,null,null,null,null,null,null,null,null,null,null,null,null,null,null,null,null,0]
[null,null,null,null,null,null,null,null,null,null,null,null,null,null,null,null,null,null,null,null,null,null,null,null,null,null,null,null,null,null,null,null,null,null,null,null,null,null,null,null,0]
[null,null,null,null,null,null,null,null,null,null,null,null,null,null,null,null,null,null,null,null,null,null,null,null,null,null,null,null,null,null,null,null,null,null,null,null,null,null,null,null,0]
[null,null,null,null,null,null,null,null,null,null,null,null,null,null,null,null,null,null,null,null,null,null,null,null,null,null,null,null,null,null,null,null,null,null,null,null,null,null,null,null,0]
[null,null,null,null,null,null,null,null,null,null,null,null,null,null,null,null,null,null,null,null,null,null,null,null,null,null,null,null,null,null,null,null,null,null,null,null,null,null,null,null,0]
[null,null,null,null,null,null,null,null,null,null,null,null,null,null,null,null,null,null,null,null,null,null,null,null,null,null,null,null,null,null,null,null,null,null,null,null,null,null,null,null,0]
[null,null,null,null,null,null,null,null,null,null,null,null,null,null,null,null,null,null,null,null,null,null,null,null,null,null,null,null,null,null,null,null,null,null,null,null,null,null,null,null,0]
[null,null,null,null,null,null,null,null,null,null,null,null,null,null,null,null,null,null,null,null,null,null,null,null,null,null,null,null,null,null,null,null,null,null,null,null,null,null,null,null,0]
[null,null,null,null,null,null,null,null,null,null,null,null,null,null,null,null,null,null,null,null,null,null,null,null,null,null,null,null,null,null,null,null,null,null,null,null,null,null,null,null,0]
[null,null,null,null,null,null,null,null,null,null,null,null,null,null,null,null,null,null,null,null,null,null,null,null,null,null,null,null,null,null,null,null,null,null,null,null,null,null,null,null,0]
[null,null,null,null,null,null,null,null,null,null,null,null,null,null,null,null,null,null,null,null,null,null,null,null,null,null,null,null,null,null,null,null,null,null,null,null,null,null,null,null,0]
[null,null,null,null,null,null,null,null,null,null,null,null,null,null,null,null,null,null,null,null,null,null,null,null,null,null,null,null,null,null,null,null,null,null,null,null,null,null,null,null,0]
[null,null,null,null,null,null,null,null,null,null,null,null,null,null,null,null,null,null,null,null,null,null,null,null,null,null,null,null,null,null,null,null,null,null,null,null,null,null,null,null,0]
[null,null,null,null,null,null,null,null,null,null,null,null,null,null,null,null,null,null,null,null,null,null,null,null,null,null,null,null,null,null,null,null,null,null,null,null,null,null,null,null,0]
[null,null,null,null,null,null,null,null,null,null,null,null,null,null,null,null,null,null,null,null,null,null,null,null,null,null,null,null,null,null,null,null,null,null,null,null,null,null,null,null,0]
[null,null,null,null,null,null,null,null,null,null,null,null,null,null,null,null,null,null,null,null,null,null,null,null,null,null,null,null,null,null,null,null,null,null,null,null,null,null,null,null,0]
[null,null,null,null,null,null,null,null,null,null,null,null,null,null,null,null,null,null,null,null,null,null,null,null,null,null,null,null,null,null,null,null,null,null,null,null,null,null,null,null,0]
[null,null,null,null,null,null,null,null,null,null,null,null,null,null,null,null,null,null,null,null,null,null,null,null,null,null,null,null,null,null,null,null,null,null,null,null,null,null,null,null,0]
[null,null,null,null,null,null,null,null,null,null,null,null,null,null,null,null,null,null,null,null,null,null,null,null,null,null,null,null,null,null,null,null,null,null,null,null,null,null,null,null,0]
[null,null,null,null,null,null,null,null,null,null,null,null,null,null,null,null,null,null,null,null,null,null,null,null,null,null,null,null,null,null,null,null,null,null,null,null,null,null,null,null,0]
[null,null,null,null,null,null,null,null,null,null,null,null,null,null,null,null,null,null,null,null,null,null,null,null,null,null,null,null,null,null,null,null,null,null,null,null,null,null,null,null,0]
[null,null,null,null,null,null,null,null,null,null,null,null,null,null,null,null,null,null,null,null,null,null,null,null,null,null,null,null,null,null,null,null,null,null,null,null,null,null,null,null,0]
[null,null,null,null,null,null,null,null,null,null,null,null,null,null,null,null,null,null,null,null,null,null,null,null,null,null,null,null,null,null,null,null,null,null,null,null,null,null,null,null,0]
[null,null,null,null,null,null,null,null,null,null,null,null,null,null,null,null,null,null,null,null,null,null,null,null,null,null,null,null,null,null,null,null,null,null,null,null,null,null,null,null,0]
[null,null,null,null,null,null,null,null,null,null,null,null,null,null,null,null,null,null,null,null,null,null,null,null,null,null,null,null,null,null,null,null,null,null,null,null,null,null,null,null,0]
[null,null,null,null,null,null,null,null,null,null,null,null,null,null,null,null,null,null,null,null,null,null,null,null,null,null,null,null,null,null,null,null,null,null,null,null,null,null,null,null,0]
[null,null,null,null,null,null,null,null,null,null,null,null,null,null,null,null,null,null,null,null,null,null,null,null,null,null,null,null,null,null,null,null,null,null,null,null,null,null,null,null,0]
[null,null,null,null,null,null,null,null,null,null,null,null,null,null,null,null,null,null,null,null,null,null,null,null,null,null,null,null,null,null,null,null,null,null,null,null,null,null,null,null,0]
[null,null,null,null,null,null,null,null,null,null,null,null,null,null,null,null,null,null,null,null,null,null,null,null,null,null,null,null,null,null,null,null,null,null,null,null,null,null,null,null,0]
[null,null,null,null,null,null,null,null,null,null,null,null,null,null,null,null,null,null,null,null,null,null,null,null,null,null,null,null,null,null,null,null,null,null,null,null,null,null,null,null,0]
[null,null,null,null,null,null,null,null,null,null,null,null,null,null,null,null,null,null,null,null,null,null,null,null,null,null,null,null,null,null,null,null,null,null,null,null,null,null,null,null,0]
[null,null,null,null,null,null,null,null,null,null,null,null,null,null,null,null,null,null,null,null,null,null,null,null,null,null,null,null,null,null,null,null,null,null,null,null,null,null,null,null,0]
[null,null,null,null,null,null,null,null,null,null,null,null,null,null,null,null,null,null,null,null,null,null,null,null,null,null,null,null,null,null,null,null,null,null,null,null,null,null,null,null,0]
[null,null,null,null,null,null,null,null,null,null,null,null,null,null,null,null,null,null,null,null,null,null,null,null,null,null,null,null,null,null,null,null,null,null,null,null,null,null,null,null,0]
[null,null,null,null,null,null,null,null,null,null,null,null,null,null,null,null,null,null,null,null,null,null,null,null,null,null,null,null,null,null,null,null,null,null,null,null,null,null,null,null,0]
[null,null,null,null,null,null,null,null,null,null,null,null,null,null,null,null,null,null,null,null,null,null,null,null,null,null,null,null,null,null,null,null,null,null,null,null,null,null,null,null,0]
[null,null,null,null,null,null,null,null,null,null,null,null,null,null,null,null,null,null,null,null,null,null,null,null,null,null,null,null,null,null,null,null,null,null,null,null,null,null,null,null,0]
[null,null,null,null,null,null,null,null,null,null,null,null,null,null,null,null,null,null,null,null,null,null,null,null,null,null,null,null,null,null,null,null,null,null,null,null,null,null,null,null,0]
[null,null,null,null,null,null,null,null,null,null,null,null,null,null,null,null,null,null,null,null,null,null,null,null,null,null,null,null,null,null,null,null,null,null,null,null,null,null,null,null,0]
[null,null,null,null,null,null,null,null,null,null,null,null,null,null,null,null,null,null,null,null,null,null,null,null,null,null,null,null,null,null,null,null,null,null,null,null,null,null,null,null,0]
[null,null,null,null,null,null,null,null,null,null,null,null,null,null,null,null,null,null,null,null,null,null,null,null,null,null,null,null,null,null,null,null,null,null,null,null,null,null,null,null,0]
[null,null,null,null,null,null,null,null,null,null,null,null,null,null,null,null,null,null,null,null,null,null,null,null,null,null,null,null,null,null,null,null,null,null,null,null,null,null,null,null,0]
[null,null,null,null,null,null,null,null,null,null,null,null,null,null,null,null,null,null,null,null,null,null,null,null,null,null,null,null,null,null,null,null,null,null,null,null,null,null,null,null,0]
[null,null,null,null,null,null,null,null,null,null,null,null,null,null,null,null,null,null,null,null,null,null,null,null,null,null,null,null,null,null,null,null,null,null,null,null,null,null,null,null,0]
[null,null,null,null,null,null,null,null,null,null,null,null,null,null,null,null,null,null,null,null,null,null,null,null,null,null,null,null,null,null,null,null,null,null,null,null,null,null,null,null,0]
[null,null,null,null,null,null,null,null,null,null,null,null,null,null,null,null,null,null,null,null,null,null,null,null,null,null,null,null,null,null,null,null,null,null,null,null,null,null,null,null,0]
[null,null,null,null,null,null,null,null,null,null,null,null,null,null,null,null,null,null,null,null,null,null,null,null,null,null,null,null,null,null,null,null,null,null,null,null,null,null,null,null,0]
[null,null,null,null,null,null,null,null,null,null,null,null,null,null,null,null,null,null,null,null,null,null,null,null,null,null,null,null,null,null,null,null,null,null,null,null,null,null,null,null,0]
[null,null,null,null,null,null,null,null,null,null,null,null,null,null,null,null,null,null,null,null,null,null,null,null,null,null,null,null,null,null,null,null,null,null,null,null,null,null,null,null,0]
[null,null,null,null,null,null,null,null,null,null,null,null,null,null,null,null,null,null,null,null,null,null,null,null,null,null,null,null,null,null,null,null,null,null,null,null,null,null,null,null,0]
[null,null,null,null,null,null,null,null,null,null,null,null,null,null,null,null,null,null,null,null,null,null,null,null,null,null,null,null,null,null,null,null,null,null,null,null,null,null,null,null,0]
[null,null,null,null,null,null,null,null,null,null,null,null,null,null,null,null,null,null,null,null,null,null,null,null,null,null,null,null,null,null,null,null,null,null,null,null,null,null,null,null,0]
[null,null,null,null,null,null,null,null,null,null,null,null,null,null,null,null,null,null,null,null,null,null,null,null,null,null,null,null,null,null,null,null,null,null,null,null,null,null,null,null,0]
[null,null,null,null,null,null,null,null,null,null,null,null,null,null,null,null,null,null,null,null,null,null,null,null,null,null,null,null,null,null,null,null,null,null,null,null,null,null,null,null,0]
[null,null,null,null,null,null,null,null,null,null,null,null,null,null,null,null,null,null,null,null,null,null,null,null,null,null,null,null,null,null,null,null,null,null,null,null,null,null,null,null,0]
[null,null,null,null,null,null,null,null,null,null,null,null,null,null,null,null,null,null,null,null,null,null,null,null,null,null,null,null,null,null,null,null,null,null,null,null,null,null,null,null,0]
[null,null,null,null,null,null,null,null,null,null,null,null,null,null,null,null,null,null,null,null,null,null,null,null,null,null,null,null,null,null,null,null,null,null,null,null,null,null,null,null,0]
[null,null,null,null,null,null,null,null,null,null,null,null,null,null,null,null,null,null,null,null,null,null,null,null,null,null,null,null,null,null,null,null,null,null,null,null,null,null,null,null,0]
[null,null,null,null,null,null,null,null,null,null,null,null,null,null,null,null,null,null,null,null,null,null,null,null,null,null,null,null,null,null,null,null,null,null,null,null,null,null,null,null,0]
[null,null,null,null,null,null,null,null,null,null,null,null,null,null,null,null,null,null,null,null,null,null,null,null,null,null,null,null,null,null,null,null,null,null,null,null,null,null,null,null,0]
[null,null,null,null,null,null,null,null,null,null,null,null,null,null,null,null,null,null,null,null,null,null,null,null,null,null,null,null,null,null,null,null,null,null,null,null,null,null,null,null,0]
[null,null,null,null,null,null,null,null,null,null,null,null,null,null,null,null,null,null,null,null,null,null,null,null,null,null,null,null,null,null,null,null,null,null,null,null,null,null,null,null,{"$f":"IF(L211>0,0,-L211)","v":0}]
[null,null,null,null,null,null,null,null,null,null,null,null,null,null,null,null,null,null,null,null,null,null,null,null,null,null,null,null,null,null,null,null,null,null,null,null,null,null,null,null,0]
[null,null,null,null,null,null,null,null,null,null,null,null,null,null,null,null,null,null,null,null,null,null,null,null,null,null,null,null,null,null,null,null,null,null,null,null,null,null,null,null,0]
[null,null,null,null,null,null,null,null,null,null,null,null,null,null,null,null,null,null,null,null,null,null,null,null,null,null,null,null,null,null,null,null,null,null,null,null,null,null,null,null,0]
[null,null,null,null,null,null,null,null,null,null,null,null,null,null,null,null,null,null,null,null,null,null,null,null,null,null,null,null,null,null,null,null,null,null,null,null,null,null,null,null,0]
[null,null,null,null,null,null,null,null,null,null,null,null,null,null,null,null,null,null,null,null,null,null,null,null,null,null,null,null,null,null,null,null,null,null,null,null,null,null,null,null,0]
[null,null,null,null,null,null,null,null,null,null,null,null,null,null,null,null,null,null,null,null,null,null,null,null,null,null,null,null,null,null,null,null,null,null,null,null,null,null,null,null,0]
[null,null,null,null,null,null,null,null,null,null,null,null,null,null,null,null,null,null,null,null,null,null,null,null,null,null,null,null,null,null,null,null,null,null,null,null,null,null,null,null,0]
[null,null,null,null,null,null,null,null,null,null,null,null,null,null,null,null,null,null,null,null,null,null,null,null,null,null,null,null,null,null,null,null,null,null,null,null,null,null,null,null,0]
[null,null,null,null,null,null,null,null,null,null,null,null,null,null,null,null,null,null,null,null,null,null,null,null,null,null,null,null,null,null,null,null,null,null,null,null,null,null,null,null,0]
[null,null,null,null,null,null,null,null,null,null,null,null,null,null,null,null,null,null,null,null,null,null,null,null,null,null,null,null,null,null,null,null,null,null,null,null,null,null,null,null,0]
[null,null,null,null,null,null,null,null,null,null,null,null,null,null,null,null,null,null,null,null,null,null,null,null,null,null,null,null,null,null,null,null,null,null,null,null,null,null,null,null,0]
[null,null,null,null,null,null,null,null,null,null,null,null,null,null,null,null,null,null,null,null,null,null,null,null,null,null,null,null,null,null,null,null,null,null,null,null,null,null,null,null,0]
[null,null,null,null,null,null,null,null,null,null,null,null,null,null,null,null,null,null,null,null,null,null,null,null,null,null,null,null,null,null,null,null,null,null,null,null,null,null,null,null,0]
[null,null,null,null,null,null,null,null,null,null,null,null,null,null,null,null,null,null,null,null,null,null,null,null,null,null,null,null,null,null,null,null,null,null,null,null,null,null,null,null,0]
[null,null,null,null,null,null,null,null,null,null,null,null,null,null,null,null,null,null,null,null,null,null,null,null,null,null,null,null,null,null,null,null,null,null,null,null,null,null,null,null,0]
[null,null,null,null,null,null,null,null,null,null,null,null,null,null,null,null,null,null,null,null,null,null,null,null,null,null,null,null,null,null,null,null,null,null,null,null,null,null,null,null,0]
[null,null,null,null,null,null,null,null,null,null,null,null,null,null,null,null,null,null,null,null,null,null,null,null,null,null,null,null,null,null,null,null,null,null,null,null,null,null,null,null,0]
[null,null,null,null,null,null,null,null,null,null,null,null,null,null,null,null,null,null,null,null,null,null,null,null,null,null,null,null,null,null,null,null,null,null,null,null,null,null,null,null,0]
[null,null,null,null,null,null,null,null,null,null,null,null,null,null,null,null,null,null,null,null,null,null,null,null,null,null,null,null,null,null,null,null,null,null,null,null,null,null,null,null,0]
[null,null,null,null,null,null,null,null,null,null,null,null,null,null,null,null,null,null,null,null,null,null,null,null,null,null,null,null,null,null,null,null,null,null,null,null,null,null,null,null,0]
[null,null,null,null,null,null,null,null,null,null,null,null,null,null,null,null,null,null,null,null,null,null,null,null,null,null,null,null,null,null,null,null,null,null,null,null,null,null,null,null,0]
[null,null,null,null,null,null,null,null,null,null,null,null,null,null,null,null,null,null,null,null,null,null,null,null,null,null,null,null,null,null,null,null,null,null,null,null,null,null,null,null,0]
[null,null,null,null,null,null,null,null,null,null,null,null,null,null,null,null,null,null,null,null,null,null,null,null,null,null,null,null,null,null,null,null,null,null,null,null,null,null,null,null,0]
[null,null,null,null,null,null,null,null,null,null,null,null,null,null,null,null,null,null,null,null,null,null,null,null,null,null,null,null,null,null,null,null,null,null,null,null,null,null,null,null,0]
[null,null,null,null,null,null,null,null,null,null,null,null,null,null,null,null,null,null,null,null,null,null,null,null,null,null,null,null,null,null,null,null,null,null,null,null,null,null,null,null,0]
[null,null,null,null,null,null,null,null,null,null,null,null,null,null,null,null,null,null,null,null,null,null,null,null,null,null,null,null,null,null,null,null,null,null,null,null,null,null,null,null,0]
[null,null,null,null,null,null,null,null,null,null,null,null,null,null,null,null,null,null,null,null,null,null,null,null,null,null,null,null,null,null,null,null,null,null,null,null,null,null,null,null,0]
[null,null,null,null,null,null,null,null,null,null,null,null,null,null,null,null,null,null,null,null,null,null,null,null,null,null,null,null,null,null,null,null,null,null,null,null,null,null,null,null,0]
[null,null,null,null,null,null,null,null,null,null,null,null,null,null,null,null,null,null,null,null,null,null,null,null,null,null,null,null,null,null,null,null,null,null,null,null,null,null,null,null,0]
[null,null,null,null,null,null,null,null,null,null,null,null,null,null,null,null,null,null,null,null,null,null,null,null,null,null,null,null,null,null,null,null,null,null,null,null,null,null,null,null,0]
[null,null,null,null,null,null,null,null,null,null,null,null,null,null,null,null,null,null,null,null,null,null,null,null,null,null,null,null,null,null,null,null,null,null,null,null,null,null,null,null,0]
[null,null,null,null,null,null,null,null,null,null,null,null,null,null,null,null,null,null,null,null,null,null,null,null,null,null,null,null,null,null,null,null,null,null,null,null,null,null,null,null,0]
[null,null,null,null,null,null,null,null,null,null,null,null,null,null,null,null,null,null,null,null,null,null,null,null,null,null,null,null,null,null,null,null,null,null,null,null,null,null,null,null,0]
[null,null,null,null,null,null,null,null,null,null,null,null,null,null,null,null,null,null,null,null,null,null,null,null,null,null,null,null,null,null,null,null,null,null,null,null,null,null,null,null,0]
[null,null,null,null,null,null,null,null,null,null,null,null,null,null,null,null,null,null,null,null,null,null,null,null,null,null,null,null,null,null,null,null,null,null,null,null,null,null,null,null,0]
[null,null,null,null,null,null,null,null,null,null,null,null,null,null,null,null,null,null,null,null,null,null,null,null,null,null,null,null,null,null,null,null,null,null,null,null,null,null,null,null,0]
[null,null,null,null,null,null,null,null,null,null,null,null,null,null,null,null,null,null,null,null,null,null,null,null,null,null,null,null,null,null,null,null,null,null,null,null,null,null,null,null,0]
[null,null,null,null,null,null,null,null,null,null,null,null,null,null,null,null,null,null,null,null,null,null,null,null,null,null,null,null,null,null,null,null,null,null,null,null,null,null,null,null,0]
[null,null,null,null,null,null,null,null,null,null,null,null,null,null,null,null,null,null,null,null,null,null,null,null,null,null,null,null,null,null,null,null,null,null,null,null,null,null,null,null,0]
[null,null,null,null,null,null,null,null,null,null,null,null,null,null,null,null,null,null,null,null,null,null,null,null,null,null,null,null,null,null,null,null,null,null,null,null,null,null,null,null,0]
[null,null,null,null,null,null,null,null,null,null,null,null,null,null,null,null,null,null,null,null,null,null,null,null,null,null,null,null,null,null,null,null,null,null,null,null,null,null,null,null,0]
[null,null,null,null,null,null,null,null,null,null,null,null,null,null,null,null,null,null,null,null,null,null,null,null,null,null,null,null,null,null,null,null,null,null,null,null,null,null,null,null,0]
[null,null,null,null,null,null,null,null,null,null,null,null,null,null,null,null,null,null,null,null,null,null,null,null,null,null,null,null,null,null,null,null,null,null,null,null,null,null,null,null,0]
[null,null,null,null,null,null,null,null,null,null,null,null,null,null,null,null,null,null,null,null,null,null,null,null,null,null,null,null,null,null,null,null,null,null,null,null,null,null,null,null,0]
[null,null,null,null,null,null,null,null,null,null,null,null,null,null,null,null,null,null,null,null,null,null,null,null,null,null,null,null,null,null,null,null,null,null,null,null,null,null,null,null,0]
[null,null,null,null,null,null,null,null,null,null,null,null,null,null,null,null,null,null,null,null,null,null,null,null,null,null,null,null,null,null,null,null,null,null,null,null,null,null,null,null,0]
[null,null,null,null,null,null,null,null,null,null,null,null,null,null,null,null,null,null,null,null,null,null,null,null,null,null,null,null,null,null,null,null,null,null,null,null,null,null,null,null,0]
[null,null,null,null,null,null,null,null,null,null,null,null,null,null,null,null,null,null,null,null,null,null,null,null,null,null,null,null,null,null,null,null,null,null,null,null,null,null,null,null,0]
[null,null,null,null,null,null,null,null,null,null,null,null,null,null,null,null,null,null,null,null,null,null,null,null,null,null,null,null,null,null,null,null,null,null,null,null,null,null,null,null,0]
[null,null,null,null,null,null,null,null,null,null,null,null,null,null,null,null,null,null,null,null,null,null,null,null,null,null,null,null,null,null,null,null,null,null,null,null,null,null,null,null,0]
[null,null,null,null,null,null,null,null,null,null,null,null,null,null,null,null,null,null,null,null,null,null,null,null,null,null,null,null,null,null,null,null,null,null,null,null,null,null,null,null,0]
[null,null,null,null,null,null,null,null,null,null,null,null,null,null,null,null,null,null,null,null,null,null,null,null,null,null,null,null,null,null,null,null,null,null,null,null,null,null,null,null,0]
[null,null,null,null,null,null,null,null,null,null,null,null,null,null,null,null,null,null,null,null,null,null,null,null,null,null,null,null,null,null,null,null,null,null,null,null,null,null,null,null,0]
[null,null,null,null,null,null,null,null,null,null,null,null,null,null,null,null,null,null,null,null,null,null,null,null,null,null,null,null,null,null,null,null,null,null,null,null,null,null,null,null,0]
[null,null,null,null,null,null,null,null,null,null,null,null,null,null,null,null,null,null,null,null,null,null,null,null,null,null,null,null,null,null,null,null,null,null,null,null,null,null,null,null,0]
[null,null,null,null,null,null,null,null,null,null,null,null,null,null,null,null,null,null,null,null,null,null,null,null,null,null,null,null,null,null,null,null,null,null,null,null,null,null,null,null,0]
[null,null,null,null,null,null,null,null,null,null,null,null,null,null,null,null,null,null,null,null,null,null,null,null,null,null,null,null,null,null,null,null,null,null,null,null,null,null,null,null,0]
[null,null,null,null,null,null,null,null,null,null,null,null,null,null,null,null,null,null,null,null,null,null,null,null,null,null,null,null,null,null,null,null,null,null,null,null,null,null,null,null,0]
[null,null,null,null,null,null,null,null,null,null,null,null,null,null,null,null,null,null,null,null,null,null,null,null,null,null,null,null,null,null,null,null,null,null,null,null,null,null,null,null,0]
[null,null,null,null,null,null,null,null,null,null,null,null,null,null,null,null,null,null,null,null,null,null,null,null,null,null,null,null,null,null,null,null,null,null,null,null,null,null,null,null,0]
[null,null,null,null,null,null,null,null,null,null,null,null,null,null,null,null,null,null,null,null,null,null,null,null,null,null,null,null,null,null,null,null,null,null,null,null,null,null,null,null,0]
[null,null,null,null,null,null,null,null,null,null,null,null,null,null,null,null,null,null,null,null,null,null,null,null,null,null,null,null,null,null,null,null,null,null,null,null,null,null,null,null,0]
[null,null,null,null,null,null,null,null,null,null,null,null,null,null,null,null,null,null,null,null,null,null,null,null,null,null,null,null,null,null,null,null,null,null,null,null,null,null,null,null,0]
[null,null,null,null,null,null,null,null,null,null,null,null,null,null,null,null,null,null,null,null,null,null,null,null,null,null,null,null,null,null,null,null,null,null,null,null,null,null,null,null,{"$f":"IF(L275>0,0,-L275)","v":0}]
[null,null,null,null,null,null,null,null,null,null,null,null,null,null,null,null,null,null,null,null,null,null,null,null,null,null,null,null,null,null,null,null,null,null,null,null,null,null,null,null,0]
[null,null,null,null,null,null,null,null,null,null,null,null,null,null,null,null,null,null,null,null,null,null,null,null,null,null,null,null,null,null,null,null,null,null,null,null,null,null,null,null,0]
[null,null,null,null,null,null,null,null,null,null,null,null,null,null,null,null,null,null,null,null,null,null,null,null,null,null,null,null,null,null,null,null,null,null,null,null,null,null,null,null,0]
[null,null,null,null,null,null,null,null,null,null,null,null,null,null,null,null,null,null,null,null,null,null,null,null,null,null,null,null,null,null,null,null,null,null,null,null,null,null,null,null,0]
[null,null,null,null,null,null,null,null,null,null,null,null,null,null,null,null,null,null,null,null,null,null,null,null,null,null,null,null,null,null,null,null,null,null,null,null,null,null,null,null,0]
[null,null,null,null,null,null,null,null,null,null,null,null,null,null,null,null,null,null,null,null,null,null,null,null,null,null,null,null,null,null,null,null,null,null,null,null,null,null,null,null,0]
[null,null,null,null,null,null,null,null,null,null,null,null,null,null,null,null,null,null,null,null,null,null,null,null,null,null,null,null,null,null,null,null,null,null,null,null,null,null,null,null,0]
[null,null,null,null,null,null,null,null,null,null,null,null,null,null,null,null,null,null,null,null,null,null,null,null,null,null,null,null,null,null,null,null,null,null,null,null,null,null,null,null,0]
[null,null,null,null,null,null,null,null,null,null,null,null,null,null,null,null,null,null,null,null,null,null,null,null,null,null,null,null,null,null,null,null,null,null,null,null,null,null,null,null,0]
[null,null,null,null,null,null,null,null,null,null,null,null,null,null,null,null,null,null,null,null,null,null,null,null,null,null,null,null,null,null,null,null,null,null,null,null,null,null,null,null,0]
[null,null,null,null,null,null,null,null,null,null,null,null,null,null,null,null,null,null,null,null,null,null,null,null,null,null,null,null,null,null,null,null,null,null,null,null,null,null,null,null,0]
[null,null,null,null,null,null,null,null,null,null,null,null,null,null,null,null,null,null,null,null,null,null,null,null,null,null,null,null,null,null,null,null,null,null,null,null,null,null,null,null,0]
[null,null,null,null,null,null,null,null,null,null,null,null,null,null,null,null,null,null,null,null,null,null,null,null,null,null,null,null,null,null,null,null,null,null,null,null,null,null,null,null,0]
[null,null,null,null,null,null,null,null,null,null,null,null,null,null,null,null,null,null,null,null,null,null,null,null,null,null,null,null,null,null,null,null,null,null,null,null,null,null,null,null,0]
[null,null,null,null,null,null,null,null,null,null,null,null,null,null,null,null,null,null,null,null,null,null,null,null,null,null,null,null,null,null,null,null,null,null,null,null,null,null,null,null,0]
[null,null,null,null,null,null,null,null,null,null,null,null,null,null,null,null,null,null,null,null,null,null,null,null,null,null,null,null,null,null,null,null,null,null,null,null,null,null,null,null,0]
[null,null,null,null,null,null,null,null,null,null,null,null,null,null,null,null,null,null,null,null,null,null,null,null,null,null,null,null,null,null,null,null,null,null,null,null,null,null,null,null,0]
[null,null,null,null,null,null,null,null,null,null,null,null,null,null,null,null,null,null,null,null,null,null,null,null,null,null,null,null,null,null,null,null,null,null,null,null,null,null,null,null,0]
[null,null,null,null,null,null,null,null,null,null,null,null,null,null,null,null,null,null,null,null,null,null,null,null,null,null,null,null,null,null,null,null,null,null,null,null,null,null,null,null,0]
[null,null,null,null,null,null,null,null,null,null,null,null,null,null,null,null,null,null,null,null,null,null,null,null,null,null,null,null,null,null,null,null,null,null,null,null,null,null,null,null,0]
[null,null,null,null,null,null,null,null,null,null,null,null,null,null,null,null,null,null,null,null,null,null,null,null,null,null,null,null,null,null,null,null,null,null,null,null,null,null,null,null,0]
[null,null,null,null,null,null,null,null,null,null,null,null,null,null,null,null,null,null,null,null,null,null,null,null,null,null,null,null,null,null,null,null,null,null,null,null,null,null,null,null,0]
[null,null,null,null,null,null,null,null,null,null,null,null,null,null,null,null,null,null,null,null,null,null,null,null,null,null,null,null,null,null,null,null,null,null,null,null,null,null,null,null,0]
[null,null,null,null,null,null,null,null,null,null,null,null,null,null,null,null,null,null,null,null,null,null,null,null,null,null,null,null,null,null,null,null,null,null,null,null,null,null,null,null,0]
[null,null,null,null,null,null,null,null,null,null,null,null,null,null,null,null,null,null,null,null,null,null,null,null,null,null,null,null,null,null,null,null,null,null,null,null,null,null,null,null,0]
[null,null,null,null,null,null,null,null,null,null,null,null,null,null,null,null,null,null,null,null,null,null,null,null,null,null,null,null,null,null,null,null,null,null,null,null,null,null,null,null,0]
[null,null,null,null,null,null,null,null,null,null,null,null,null,null,null,null,null,null,null,null,null,null,null,null,null,null,null,null,null,null,null,null,null,null,null,null,null,null,null,null,0]
[null,null,null,null,null,null,null,null,null,null,null,null,null,null,null,null,null,null,null,null,null,null,null,null,null,null,null,null,null,null,null,null,null,null,null,null,null,null,null,null,0]
[null,null,null,null,null,null,null,null,null,null,null,null,null,null,null,null,null,null,null,null,null,null,null,null,null,null,null,null,null,null,null,null,null,null,null,null,null,null,null,null,0]
[null,null,null,null,null,null,null,null,null,null,null,null,null,null,null,null,null,null,null,null,null,null,null,null,null,null,null,null,null,null,null,null,null,null,null,null,null,null,null,null,0]
[null,null,null,null,null,null,null,null,null,null,null,null,null,null,null,null,null,null,null,null,null,null,null,null,null,null,null,null,null,null,null,null,null,null,null,null,null,null,null,null,0]
[null,null,null,null,null,null,null,null,null,null,null,null,null,null,null,null,null,null,null,null,null,null,null,null,null,null,null,null,null,null,null,null,null,null,null,null,null,null,null,null,0]
[null,null,null,null,null,null,null,null,null,null,null,null,null,null,null,null,null,null,null,null,null,null,null,null,null,null,null,null,null,null,null,null,null,null,null,null,null,null,null,null,0]
[null,null,null,null,null,null,null,null,null,null,null,null,null,null,null,null,null,null,null,null,null,null,null,null,null,null,null,null,null,null,null,null,null,null,null,null,null,null,null,null,0]
[null,null,null,null,null,null,null,null,null,null,null,null,null,null,null,null,null,null,null,null,null,null,null,null,null,null,null,null,null,null,null,null,null,null,null,null,null,null,null,null,0]
[null,null,null,null,null,null,null,null,null,null,null,null,null,null,null,null,null,null,null,null,null,null,null,null,null,null,null,null,null,null,null,null,null,null,null,null,null,null,null,null,0]
[null,null,null,null,null,null,null,null,null,null,null,null,null,null,null,null,null,null,null,null,null,null,null,null,null,null,null,null,null,null,null,null,null,null,null,null,null,null,null,null,0]
[null,null,null,null,null,null,null,null,null,null,null,null,null,null,null,null,null,null,null,null,null,null,null,null,null,null,null,null,null,null,null,null,null,null,null,null,null,null,null,null,0]
[null,null,null,null,null,null,null,null,null,null,null,null,null,null,null,null,null,null,null,null,null,null,null,null,null,null,null,null,null,null,null,null,null,null,null,null,null,null,null,null,0]
[null,null,null,null,null,null,null,null,null,null,null,null,null,null,null,null,null,null,null,null,null,null,null,null,null,null,null,null,null,null,null,null,null,null,null,null,null,null,null,null,0]
[null,null,null,null,null,null,null,null,null,null,null,null,null,null,null,null,null,null,null,null,null,null,null,null,null,null,null,null,null,null,null,null,null,null,null,null,null,null,null,null,0]
[null,null,null,null,null,null,null,null,null,null,null,null,null,null,null,null,null,null,null,null,null,null,null,null,null,null,null,null,null,null,null,null,null,null,null,null,null,null,null,null,0]
[null,null,null,null,null,null,null,null,null,null,null,null,null,null,null,null,null,null,null,null,null,null,null,null,null,null,null,null,null,null,null,null,null,null,null,null,null,null,null,null,0]
[null,null,null,null,null,null,null,null,null,null,null,null,null,null,null,null,null,null,null,null,null,null,null,null,null,null,null,null,null,null,null,null,null,null,null,null,null,null,null,null,0]
[null,null,null,null,null,null,null,null,null,null,null,null,null,null,null,null,null,null,null,null,null,null,null,null,null,null,null,null,null,null,null,null,null,null,null,null,null,null,null,null,0]
[null,null,null,null,null,null,null,null,null,null,null,null,null,null,null,null,null,null,null,null,null,null,null,null,null,null,null,null,null,null,null,null,null,null,null,null,null,null,null,null,0]
[null,null,null,null,null,null,null,null,null,null,null,null,null,null,null,null,null,null,null,null,null,null,null,null,null,null,null,null,null,null,null,null,null,null,null,null,null,null,null,null,0]
[null,null,null,null,null,null,null,null,null,null,null,null,null,null,null,null,null,null,null,null,null,null,null,null,null,null,null,null,null,null,null,null,null,null,null,null,null,null,null,null,0]
[null,null,null,null,null,null,null,null,null,null,null,null,null,null,null,null,null,null,null,null,null,null,null,null,null,null,null,null,null,null,null,null,null,null,null,null,null,null,null,null,0]
[null,null,null,null,null,null,null,null,null,null,null,null,null,null,null,null,null,null,null,null,null,null,null,null,null,null,null,null,null,null,null,null,null,null,null,null,null,null,null,null,0]
[null,null,null,null,null,null,null,null,null,null,null,null,null,null,null,null,null,null,null,null,null,null,null,null,null,null,null,null,null,null,null,null,null,null,null,null,null,null,null,null,0]
[null,null,null,null,null,null,null,null,null,null,null,null,null,null,null,null,null,null,null,null,null,null,null,null,null,null,null,null,null,null,null,null,null,null,null,null,null,null,null,null,0]
[null,null,null,null,null,null,null,null,null,null,null,null,null,null,null,null,null,null,null,null,null,null,null,null,null,null,null,null,null,null,null,null,null,null,null,null,null,null,null,null,0]
[null,null,null,null,null,null,null,null,null,null,null,null,null,null,null,null,null,null,null,null,null,null,null,null,null,null,null,null,null,null,null,null,null,null,null,null,null,null,null,null,0]
[null,null,null,null,null,null,null,null,null,null,null,null,null,null,null,null,null,null,null,null,null,null,null,null,null,null,null,null,null,null,null,null,null,null,null,null,null,null,null,null,0]
[null,null,null,null,null,null,null,null,null,null,null,null,null,null,null,null,null,null,null,null,null,null,null,null,null,null,null,null,null,null,null,null,null,null,null,null,null,null,null,null,0]
[null,null,null,null,null,null,null,null,null,null,null,null,null,null,null,null,null,null,null,null,null,null,null,null,null,null,null,null,null,null,null,null,null,null,null,null,null,null,null,null,0]
[null,null,null,null,null,null,null,null,null,null,null,null,null,null,null,null,null,null,null,null,null,null,null,null,null,null,null,null,null,null,null,null,null,null,null,null,null,null,null,null,0]
[null,null,null,null,null,null,null,null,null,null,null,null,null,null,null,null,null,null,null,null,null,null,null,null,null,null,null,null,null,null,null,null,null,null,null,null,null,null,null,null,0]
[null,null,null,null,null,null,null,null,null,null,null,null,null,null,null,null,null,null,null,null,null,null,null,null,null,null,null,null,null,null,null,null,null,null,null,null,null,null,null,null,0]
[null,null,null,null,null,null,null,null,null,null,null,null,null,null,null,null,null,null,null,null,null,null,null,null,null,null,null,null,null,null,null,null,null,null,null,null,null,null,null,null,0]
[null,null,null,null,null,null,null,null,null,null,null,null,null,null,null,null,null,null,null,null,null,null,null,null,null,null,null,null,null,null,null,null,null,null,null,null,null,null,null,null,0]
[null,null,null,null,null,null,null,null,null,null,null,null,null,null,null,null,null,null,null,null,null,null,null,null,null,null,null,null,null,null,null,null,null,null,null,null,null,null,null,null,0]
[null,null,null,null,null,null,null,null,null,null,null,null,null,null,null,null,null,null,null,null,null,null,null,null,null,null,null,null,null,null,null,null,null,null,null,null,null,null,null,null,{"$f":"IF(L339>0,0,-L339)","v":0}]
[null,null,null,null,null,null,null,null,null,null,null,null,null,null,null,null,null,null,null,null,null,null,null,null,null,null,null,null,null,null,null,null,null,null,null,null,null,null,null,null,0]
[null,null,null,null,null,null,null,null,null,null,null,null,null,null,null,null,null,null,null,null,null,null,null,null,null,null,null,null,null,null,null,null,null,null,null,null,null,null,null,null,0]
[null,null,null,null,null,null,null,null,null,null,null,null,null,null,null,null,null,null,null,null,null,null,null,null,null,null,null,null,null,null,null,null,null,null,null,null,null,null,null,null,0]
[null,null,null,null,null,null,null,null,null,null,null,null,null,null,null,null,null,null,null,null,null,null,null,null,null,null,null,null,null,null,null,null,null,null,null,null,null,null,null,null,0]
[null,null,null,null,null,null,null,null,null,null,null,null,null,null,null,null,null,null,null,null,null,null,null,null,null,null,null,null,null,null,null,null,null,null,null,null,null,null,null,null,0]
[null,null,null,null,null,null,null,null,null,null,null,null,null,null,null,null,null,null,null,null,null,null,null,null,null,null,null,null,null,null,null,null,null,null,null,null,null,null,null,null,0]
[null,null,null,null,null,null,null,null,null,null,null,null,null,null,null,null,null,null,null,null,null,null,null,null,null,null,null,null,null,null,null,null,null,null,null,null,null,null,null,null,0]
[null,null,null,null,null,null,null,null,null,null,null,null,null,null,null,null,null,null,null,null,null,null,null,null,null,null,null,null,null,null,null,null,null,null,null,null,null,null,null,null,0]
[null,null,null,null,null,null,null,null,null,null,null,null,null,null,null,null,null,null,null,null,null,null,null,null,null,null,null,null,null,null,null,null,null,null,null,null,null,null,null,null,0]
[null,null,null,null,null,null,null,null,null,null,null,null,null,null,null,null,null,null,null,null,null,null,null,null,null,null,null,null,null,null,null,null,null,null,null,null,null,null,null,null,0]
[null,null,null,null,null,null,null,null,null,null,null,null,null,null,null,null,null,null,null,null,null,null,null,null,null,null,null,null,null,null,null,null,null,null,null,null,null,null,null,null,0]
[null,null,null,null,null,null,null,null,null,null,null,null,null,null,null,null,null,null,null,null,null,null,null,null,null,null,null,null,null,null,null,null,null,null,null,null,null,null,null,null,0]
[null,null,null,null,null,null,null,null,null,null,null,null,null,null,null,null,null,null,null,null,null,null,null,null,null,null,null,null,null,null,null,null,null,null,null,null,null,null,null,null,0]
[null,null,null,null,null,null,null,null,null,null,null,null,null,null,null,null,null,null,null,null,null,null,null,null,null,null,null,null,null,null,null,null,null,null,null,null,null,null,null,null,0]
[null,null,null,null,null,null,null,null,null,null,null,null,null,null,null,null,null,null,null,null,null,null,null,null,null,null,null,null,null,null,null,null,null,null,null,null,null,null,null,null,0]
[null,null,null,null,null,null,null,null,null,null,null,null,null,null,null,null,null,null,null,null,null,null,null,null,null,null,null,null,null,null,null,null,null,null,null,null,null,null,null,null,0]
[null,null,null,null,null,null,null,null,null,null,null,null,null,null,null,null,null,null,null,null,null,null,null,null,null,null,null,null,null,null,null,null,null,null,null,null,null,null,null,null,0]
[null,null,null,null,null,null,null,null,null,null,null,null,null,null,null,null,null,null,null,null,null,null,null,null,null,null,null,null,null,null,null,null,null,null,null,null,null,null,null,null,0]
[null,null,null,null,null,null,null,null,null,null,null,null,null,null,null,null,null,null,null,null,null,null,null,null,null,null,null,null,null,null,null,null,null,null,null,null,null,null,null,null,0]
[null,null,null,null,null,null,null,null,null,null,null,null,null,null,null,null,null,null,null,null,null,null,null,null,null,null,null,null,null,null,null,null,null,null,null,null,null,null,null,null,0]
[null,null,null,null,null,null,null,null,null,null,null,null,null,null,null,null,null,null,null,null,null,null,null,null,null,null,null,null,null,null,null,null,null,null,null,null,null,null,null,null,0]
[null,null,null,null,null,null,null,null,null,null,null,null,null,null,null,null,null,null,null,null,null,null,null,null,null,null,null,null,null,null,null,null,null,null,null,null,null,null,null,null,0]
[null,null,null,null,null,null,null,null,null,null,null,null,null,null,null,null,null,null,null,null,null,null,null,null,null,null,null,null,null,null,null,null,null,null,null,null,null,null,null,null,0]
[null,null,null,null,null,null,null,null,null,null,null,null,null,null,null,null,null,null,null,null,null,null,null,null,null,null,null,null,null,null,null,null,null,null,null,null,null,null,null,null,0]
[null,null,null,null,null,null,null,null,null,null,null,null,null,null,null,null,null,null,null,null,null,null,null,null,null,null,null,null,null,null,null,null,null,null,null,null,null,null,null,null,0]
[null,null,null,null,null,null,null,null,null,null,null,null,null,null,null,null,null,null,null,null,null,null,null,null,null,null,null,null,null,null,null,null,null,null,null,null,null,null,null,null,0]
[null,null,null,null,null,null,null,null,null,null,null,null,null,null,null,null,null,null,null,null,null,null,null,null,null,null,null,null,null,null,null,null,null,null,null,null,null,null,null,null,0]
[null,null,null,null,null,null,null,null,null,null,null,null,null,null,null,null,null,null,null,null,null,null,null,null,null,null,null,null,null,null,null,null,null,null,null,null,null,null,null,null,0]
[null,null,null,null,null,null,null,null,null,null,null,null,null,null,null,null,null,null,null,null,null,null,null,null,null,null,null,null,null,null,null,null,null,null,null,null,null,null,null,null,0]
[null,null,null,null,null,null,null,null,null,null,null,null,null,null,null,null,null,null,null,null,null,null,null,null,null,null,null,null,null,null,null,null,null,null,null,null,null,null,null,null,0]
[null,null,null,null,null,null,null,null,null,null,null,null,null,null,null,null,null,null,null,null,null,null,null,null,null,null,null,null,null,null,null,null,null,null,null,null,null,null,null,null,0]
[null,null,null,null,null,null,null,null,null,null,null,null,null,null,null,null,null,null,null,null,null,null,null,null,null,null,null,null,null,null,null,null,null,null,null,null,null,null,null,null,0]
[null,null,null,null,null,null,null,null,null,null,null,null,null,null,null,null,null,null,null,null,null,null,null,null,null,null,null,null,null,null,null,null,null,null,null,null,null,null,null,null,0]
[null,null,null,null,null,null,null,null,null,null,null,null,null,null,null,null,null,null,null,null,null,null,null,null,null,null,null,null,null,null,null,null,null,null,null,null,null,null,null,null,0]
[null,null,null,null,null,null,null,null,null,null,null,null,null,null,null,null,null,null,null,null,null,null,null,null,null,null,null,null,null,null,null,null,null,null,null,null,null,null,null,null,0]
[null,null,null,null,null,null,null,null,null,null,null,null,null,null,null,null,null,null,null,null,null,null,null,null,null,null,null,null,null,null,null,null,null,null,null,null,null,null,null,null,0]
[null,null,null,null,null,null,null,null,null,null,null,null,null,null,null,null,null,null,null,null,null,null,null,null,null,null,null,null,null,null,null,null,null,null,null,null,null,null,null,null,0]
[null,null,null,null,null,null,null,null,null,null,null,null,null,null,null,null,null,null,null,null,null,null,null,null,null,null,null,null,null,null,null,null,null,null,null,null,null,null,null,null,0]
[null,null,null,null,null,null,null,null,null,null,null,null,null,null,null,null,null,null,null,null,null,null,null,null,null,null,null,null,null,null,null,null,null,null,null,null,null,null,null,null,0]
[null,null,null,null,null,null,null,null,null,null,null,null,null,null,null,null,null,null,null,null,null,null,null,null,null,null,null,null,null,null,null,null,null,null,null,null,null,null,null,null,0]
[null,null,null,null,null,null,null,null,null,null,null,null,null,null,null,null,null,null,null,null,null,null,null,null,null,null,null,null,null,null,null,null,null,null,null,null,null,null,null,null,0]
[null,null,null,null,null,null,null,null,null,null,null,null,null,null,null,null,null,null,null,null,null,null,null,null,null,null,null,null,null,null,null,null,null,null,null,null,null,null,null,null,0]
[null,null,null,null,null,null,null,null,null,null,null,null,null,null,null,null,null,null,null,null,null,null,null,null,null,null,null,null,null,null,null,null,null,null,null,null,null,null,null,null,0]
[null,null,null,null,null,null,null,null,null,null,null,null,null,null,null,null,null,null,null,null,null,null,null,null,null,null,null,null,null,null,null,null,null,null,null,null,null,null,null,null,0]
[null,null,null,null,null,null,null,null,null,null,null,null,null,null,null,null,null,null,null,null,null,null,null,null,null,null,null,null,null,null,null,null,null,null,null,null,null,null,null,null,0]
[null,null,null,null,null,null,null,null,null,null,null,null,null,null,null,null,null,null,null,null,null,null,null,null,null,null,null,null,null,null,null,null,null,null,null,null,null,null,null,null,0]
[null,null,null,null,null,null,null,null,null,null,null,null,null,null,null,null,null,null,null,null,null,null,null,null,null,null,null,null,null,null,null,null,null,null,null,null,null,null,null,null,0]
[null,null,null,null,null,null,null,null,null,null,null,null,null,null,null,null,null,null,null,null,null,null,null,null,null,null,null,null,null,null,null,null,null,null,null,null,null,null,null,null,{"$f":"IF(L387>0,0,-L387)","v":0}]
[null,null,null,null,null,null,null,null,null,null,null,null,null,null,null,null,null,null,null,null,null,null,null,null,null,null,null,null,null,null,null,null,null,null,null,null,null,null,null,null,0]
[null,null,null,null,null,null,null,null,null,null,null,null,null,null,null,null,null,null,null,null,null,null,null,null,null,null,null,null,null,null,null,null,null,null,null,null,null,null,null,null,0]
[null,null,null,null,null,null,null,null,null,null,null,null,null,null,null,null,null,null,null,null,null,null,null,null,null,null,null,null,null,null,null,null,null,null,null,null,null,null,null,null,0]
[null,null,null,null,null,null,null,null,null,null,null,null,null,null,null,null,null,null,null,null,null,null,null,null,null,null,null,null,null,null,null,null,null,null,null,null,null,null,null,null,0]
[null,null,null,null,null,null,null,null,null,null,null,null,null,null,null,null,null,null,null,null,null,null,null,null,null,null,null,null,null,null,null,null,null,null,null,null,null,null,null,null,0]
[null,null,null,null,null,null,null,null,null,null,null,null,null,null,null,null,null,null,null,null,null,null,null,null,null,null,null,null,null,null,null,null,null,null,null,null,null,null,null,null,0]
[null,null,null,null,null,null,null,null,null,null,null,null,null,null,null,null,null,null,null,null,null,null,null,null,null,null,null,null,null,null,null,null,null,null,null,null,null,null,null,null,0]
[null,null,null,null,null,null,null,null,null,null,null,null,null,null,null,null,null,null,null,null,null,null,null,null,null,null,null,null,null,null,null,null,null,null,null,null,null,null,null,null,0]
[null,null,null,null,null,null,null,null,null,null,null,null,null,null,null,null,null,null,null,null,null,null,null,null,null,null,null,null,null,null,null,null,null,null,null,null,null,null,null,null,0]
[null,null,null,null,null,null,null,null,null,null,null,null,null,null,null,null,null,null,null,null,null,null,null,null,null,null,null,null,null,null,null,null,null,null,null,null,null,null,null,null,{"$f":"IF(L397>0,0,-L397)","v":0}]
[null,null,null,null,null,null,null,null,null,null,null,null,null,null,null,null,null,null,null,null,null,null,null,null,null,null,null,null,null,null,null,null,null,null,null,null,null,null,null,null,{"$f":"IF(L398>0,0,-L398)","v":0}]
[null,null,null,null,null,null,null,null,null,null,null,null,null,null,null,null,null,null,null,null,null,null,null,null,null,null,null,null,null,null,null,null,null,null,null,null,null,null,null,null,{"$f":"IF(L399>0,0,-L399)","v":0}]
[null,null,null,null,null,null,null,null,null,null,null,null,null,null,null,null,null,null,null,null,null,null,null,null,null,null,null,null,null,null,null,null,null,null,null,null,null,null,null,null,{"$f":"IF(L400>0,0,-L400)","v":0}]
[null,null,null,null,null,null,null,null,null,null,null,null,null,null,null,null,null,null,null,null,null,null,null,null,null,null,null,null,null,null,null,null,null,null,null,null,null,null,null,null,0]
[null,null,null,null,null,null,null,null,null,null,null,null,null,null,null,null,null,null,null,null,null,null,null,null,null,null,null,null,null,null,null,null,null,null,null,null,null,null,null,null,0]
[null,null,null,null,null,null,null,null,null,null,null,null,null,null,null,null,null,null,null,null,null,null,null,null,null,null,null,null,null,null,null,null,null,null,null,null,null,null,null,null,{"$f":"IF(L403>0,0,-L403)","v":0}]
[null,null,null,null,null,null,null,null,null,null,null,null,null,null,null,null,null,null,null,null,null,null,null,null,null,null,null,null,null,null,null,null,null,null,null,null,null,null,null,null,{"$f":"IF(L404>0,0,-L404)","v":0}]

{"sheet":"Инструкция пользователя","index":3,"n_rows":0,"n_cols":0,"rows_kept":0,"cut":false,"hidden":false,"merged":[]}

{"sheet":"Графики","index":4,"n_rows":0,"n_cols":0,"rows_kept":0,"cut":false,"hidden":true,"merged":[]}

{"sheet":"ШаблонПечати","index":5,"n_rows":25,"n_cols":16,"rows_kept":25,"cut":false,"hidden":true,"merged":[[236,1,236,15],[238,1,238,15],[1,0,1,15],[3,3,3,4],[4,3,4,4],[5,3,5,4],[6,3,6,6],[27,1,27,15],[29,1,29,15],[31,1,31,15],[6,7,6,8],[7,7,7,8],[8,7,8,8],[9,7,9,8],[234,1,234,15],[3,5,3,9],[4,5,4,9],[5,5,5,9],[7,3,7,6],[8,3,8,6],[9,3,9,6]]}
[]
[]
[]
[]
[]
[]
[]
[]
[]
[]
[]
[]
[]
[]
[]
[]
[]
[]
[0,"00:00:00",0,0,9999999.9900000002,0,0,0,0,9320,0,0,0,0,0,0]
[]
[0,"00:00:00",0,0,0,0,0,0,0,0,0,0,0,0,0,0]
[]
[0,"00:00:00",0,0,0,0,0,0,0,0,0,0,0,0,0,0]
[]
[0,"00:00:00",0,0,0,0,0,0,0,0,0,0,0,0,0,0]

{"sheet":"Справочник","index":6,"n_rows":256,"n_cols":10,"rows_kept":256,"cut":false,"hidden":true,"merged":[]}
[null,null,"Верхний предел % ставки",0.11,"Максимальный срок",240]
[null,null,"Коэффициент снижения для максимальной суммы растущего платежа",1,"Коэффициент снижения для растущего платежа",{"$f":"G2*(((MaxPeriods)/(240+MaxPeriods)))","v":5.1383399209486173E-3},0.1,{"$f":"G2*(MaxPeriods/240)","v":5.4166666666666669E-3}]
[1,2,3,4,5,6,7]
[null,null,"Дата","Уровень инфляции","Процентная ставка","Субсидия","с Индексацией","Коэффициент"]
[null,null,"2017-01-01",0,0.08,21678,{"$f":"F5+(I5-F5)*F2","v":21678},{"$f":"F$2","v":5.1383399209486173E-3},21678,{"$f":"G5/I5","v":1}]
[null,null,"2017-02-01",0,0.08,21678,{"$f":"IF(I5=I6,G5,G5+(I6-G5)*F$2)","v":21678},{"$f":"F$2","v":5.1383399209486173E-3},21678,1]
[null,null,"2017-03-01",0,0.08,21678,{"$f":"IF(I6=I7,G6,G6+(I7-G6)*F$2)","v":21678},5.1383399209486173E-3,21678,1]
[null,null,"2017-04-01",0,0.08,21678,21678,5.1383399209486173E-3,21678,1]
[null,null,"2017-05-01",0,0.08,21678,21678,5.1383399209486173E-3,21678,1]
[null,null,"2017-06-01",0,0.08,21678,21678,5.1383399209486173E-3,21678,1]
[null,null,"2017-07-01",0,0.08,21678,21678,5.1383399209486173E-3,21678,1]
[null,null,"2017-08-01",0,0.08,21678,21678,5.1383399209486173E-3,21678,1]
[null,null,"2017-09-01",0,0.08,21678,21678,5.1383399209486173E-3,21678,1]
[null,null,"2017-10-01",0,0.08,21678,21678,5.1383399209486173E-3,21678,1]
[null,null,"2017-11-01",0,0.08,21678,21678,5.1383399209486173E-3,21678,1]
[null,null,"2017-12-01",0,0.08,21678,21678,5.1383399209486173E-3,21678,1]
[null,null,"2018-01-01",0,0.08,21678,21683.796047430831,5.1383399209486173E-3,22806,{"$f":"G17/I17","v":0.95079347748096255}]
[null,null,"2018-02-01",0,0.08,21678,21683.796047430831,5.1383399209486173E-3,22806,{"$f":"G18/I18","v":0.95079347748096255}]
[null,null,"2018-03-01",0,0.08,21678,21683.796047430831,5.1383399209486173E-3,22806,0.95079347748096255]
[null,null,"2018-04-01",0,0.08,21678,21683.796047430831,5.1383399209486173E-3,22806,0.95079347748096255]
[null,null,"2018-05-01",0,0.08,21678,21683.796047430831,5.1383399209486173E-3,22806,0.95079347748096255]
[null,null,"2018-06-01",0,0.08,21678,21683.796047430831,5.1383399209486173E-3,22806,0.95079347748096255]
[null,null,"2018-07-01",0,0.08,21678,21683.796047430831,5.1383399209486173E-3,22806,0.95079347748096255]
[null,null,"2018-08-01",0,0.08,21678,21683.796047430831,5.1383399209486173E-3,22806,0.95079347748096255]
[null,null,"2018-09-01",0,0.08,21678,21683.796047430831,5.1383399209486173E-3,22806,0.95079347748096255]
[null,null,"2018-10-01",0,0.08,21678,21683.796047430831,5.1383399209486173E-3,22806,0.95079347748096255]
[null,null,"2018-11-01",0,0.08,21678,21683.796047430831,5.1383399209486173E-3,22806,0.95079347748096255]
[null,null,"2018-12-01",0,0.08,21678,21683.796047430831,5.1383399209486173E-3,22806,0.95079347748096255]
[null,null,"2019-01-01",0,0.08,21678,21695.420020309644,5.1383399209486173E-3,23946,0.90601436650420297]
[null,null,"2019-02-01",0,0.08,21678,21695.420020309644,5.1383399209486173E-3,23946,0.90601436650420297]
[null,null,"2019-03-01",0,0.08,21678,21695.420020309644,5.1383399209486173E-3,23946,0.90601436650420297]
[null,null,"2019-04-01",0,0.08,21678,21695.420020309644,5.1383399209486173E-3,23946,0.90601436650420297]
[null,null,"2019-05-01",0,0.08,21678,21695.420020309644,5.1383399209486173E-3,23946,0.90601436650420297]
[null,null,"2019-06-01",0,0.08,21678,21695.420020309644,5.1383399209486173E-3,23946,0.90601436650420297]
[null,null,"2019-07-01",0,0.08,21678,21695.420020309644,5.1383399209486173E-3,23946,0.90601436650420297]
[null,null,"2019-08-01",0,0.08,21678,21695.420020309644,5.1383399209486173E-3,23946,0.90601436650420297]
[null,null,"2019-09-01",0,0.08,21678,21695.420020309644,5.1383399209486173E-3,23946,0.90601436650420297]
[null,null,"2019-10-01",0,0.08,21678,21695.420020309644,5.1383399209486173E-3,23946,0.90601436650420297]
[null,null,"2019-11-01",0,0.08,21678,21695.420020309644,5.1383399209486173E-3,23946,0.90601436650420297]
[null,null,"2019-12-01",0,0.08,21678,21695.420020309644,5.1383399209486173E-3,23946,0.90601436650420297]
[null,null,"2020-01-01",0,0.08,21678,21711.166873960228,5.1383399209486173E-3,24760,0.87686457487723057]
[null,null,"2020-02-01",0,0.08,21678,21711.166873960228,5.1383399209486173E-3,24760,0.87686457487723057]
[null,null,"2020-03-01",0,0.08,21678,21711.166873960228,5.1383399209486173E-3,24760,0.87686457487723057]
[null,null,"2020-04-01",0,0.08,21678,21711.166873960228,5.1383399209486173E-3,24760,0.87686457487723057]
[null,null,"2020-05-01",0,0.08,21678,21711.166873960228,5.1383399209486173E-3,24760,0.87686457487723057]
[null,null,"2020-06-01",0,0.08,21678,21711.166873960228,5.1383399209486173E-3,24760,0.87686457487723057]
[null,null,"2020-07-01",0,0.08,21678,21711.166873960228,5.1383399209486173E-3,24760,0.87686457487723057]
[null,null,"2020-08-01",0,0.08,21678,21711.166873960228,5.1383399209486173E-3,24760,0.87686457487723057]
[null,null,"2020-09-01",0,0.08,21678,21711.166873960228,5.1383399209486173E-3,24760,0.87686457487723057]
[null,null,"2020-10-01",0,0.08,21678,21711.166873960228,5.1383399209486173E-3,24760,0.87686457487723057]
[null,null,"2020-11-01",0,0.08,21678,21711.166873960228,5.1383399209486173E-3,24760,0.87686457487723057]
[null,null,"2020-12-01",0,0.08,21678,21711.166873960228,5.1383399209486173E-3,24760,0.87686457487723057]
[null,null,"2021-01-01",0,0.08,21678,21730.779059983357,5.1383399209486173E-3,25528,0.85125270526415531]
[null,null,"2021-02-01",0,0.08,21678,21730.779059983357,5.1383399209486173E-3,25528,0.85125270526415531]
[null,null,"2021-03-01",0,0.08,21678,21730.779059983357,5.1383399209486173E-3,25528,0.85125270526415531]
[null,null,"2021-04-01",0,0.08,21678,21730.779059983357,5.1383399209486173E-3,25528,0.85125270526415531]
[null,null,"2021-05-01",0,0.08,21678,21730.779059983357,5.1383399209486173E-3,25528,0.85125270526415531]
[null,null,"2021-06-01",0,0.08,21678,21730.779059983357,5.1383399209486173E-3,25528,0.85125270526415531]
[null,null,"2021-07-01",0,0.08,21678,21730.779059983357,5.1383399209486173E-3,25528,0.85125270526415531]
[null,null,"2021-08-01",0,0.08,21678,21730.779059983357,5.1383399209486173E-3,25528,0.85125270526415531]
[null,null,"2021-09-01",0,0.08,21678,21730.779059983357,5.1383399209486173E-3,25528,0.85125270526415531]
[null,null,"2021-10-01",0,0.08,21678,21730.779059983357,5.1383399209486173E-3,25528,0.85125270526415531]
[null,null,"2021-11-01",0,0.08,21678,21730.779059983357,5.1383399209486173E-3,25528,0.85125270526415531]
[null,null,"2021-12-01",0,0.08,21678,21730.779059983357,5.1383399209486173E-3,25528,0.85125270526415531]
[null,null,"2022-01-01",0,0.08,21678,21754.226440307553,5.1383399209486173E-3,26294,0.82734564692734291]
[null,null,"2022-02-01",0,0.08,21678,21754.226440307553,5.1383399209486173E-3,26294,0.82734564692734291]
[null,null,"2022-03-01",0,0.08,21678,21754.226440307553,5.1383399209486173E-3,26294,0.82734564692734291]
[null,null,"2022-04-01",0,0.08,21678,21754.226440307553,5.1383399209486173E-3,26294,0.82734564692734291]
[null,null,"2022-05-01",0,0.08,21678,21754.226440307553,5.1383399209486173E-3,26294,0.82734564692734291]
[null,null,"2022-06-01",0,0.08,21678,21754.226440307553,{"$f":"F$2","v":5.1383399209486173E-3},26294,0.82734564692734291]
[null,null,"2022-07-01",0,0.08,21678,{"$f":"IF(I70=I71,G70,G70+(I71-G70)*F$2)","v":21754.226440307553},5.1383399209486173E-3,26294,0.82734564692734291]
[null,null,"2022-08-01",0,0.08,21678,21754.226440307553,5.1383399209486173E-3,26294,0.82734564692734291]
[null,null,"2022-09-01",0,0.08,21678,21754.226440307553,5.1383399209486173E-3,26294,0.82734564692734291]
[null,null,"2022-10-01",0,0.08,21678,21754.226440307553,5.1383399209486173E-3,26294,0.82734564692734291]
[null,null,"2022-11-01",0,0.08,21678,21754.226440307553,5.1383399209486173E-3,26294,0.82734564692734291]
[null,null,"2022-12-01",0,0.08,21678,21754.226440307553,5.1383399209486173E-3,26294,0.82734564692734291]
[null,null,"2023-01-01",0,0.08,21678,21781.335158203205,5.1383399209486173E-3,27030,0.80582076056985585]
[null,null,"2023-02-01",0,0.08,21678,21781.335158203205,5.1383399209486173E-3,27030,0.80582076056985585]
[null,null,"2023-03-01",0,0.08,21678,21781.335158203205,5.1383399209486173E-3,27030,0.80582076056985585]
[null,null,"2023-04-01",0,0.08,21678,21781.335158203205,5.1383399209486173E-3,27030,0.80582076056985585]
[null,null,"2023-05-01",0,0.08,21678,21781.335158203205,5.1383399209486173E-3,27030,0.80582076056985585]
[null,null,"2023-06-01",0,0.08,21678,21781.335158203205,5.1383399209486173E-3,27030,{"$f":"G82/I82","v":0.80582076056985585}]
[null,null,"2023-07-01",0,0.08,21678,21781.335158203205,5.1383399209486173E-3,27030,0.80582076056985585]
[null,null,"2023-08-01",0,0.08,21678,21781.335158203205,5.1383399209486173E-3,27030,0.80582076056985585]
[null,null,"2023-09-01",0,0.08,21678,21781.335158203205,5.1383399209486173E-3,27030,0.80582076056985585]
[null,null,"2023-10-01",0,0.08,21678,21781.335158203205,5.1383399209486173E-3,27030,0.80582076056985585]
[null,null,"2023-11-01",0,0.08,21678,21781.335158203205,5.1383399209486173E-3,27030,0.80582076056985585]
[null,null,"2023-12-01",0,0.08,21678,21781.335158203205,5.1383399209486173E-3,27030,0.80582076056985585]
[null,null,"2024-01-01",0,0.08,21678,21812.055570433782,5.1383399209486173E-3,27760,0.78573687213378174]
[null,null,"2024-02-01",0,0.08,21678,21812.055570433782,5.1383399209486173E-3,27760,0.78573687213378174]
[null,null,"2024-03-01",0,0.08,21678,21812.055570433782,5.1383399209486173E-3,27760,0.78573687213378174]
[null,null,"2024-04-01",0,0.08,21678,21812.055570433782,5.1383399209486173E-3,27760,0.78573687213378174]
[null,null,"2024-05-01",0,0.08,21678,21812.055570433782,5.1383399209486173E-3,27760,0.78573687213378174]
[null,null,"2024-06-01",0,0.08,21678,21812.055570433782,5.1383399209486173E-3,27760,0.78573687213378174]
[null,null,"2024-07-01",0,0.08,21678,21812.055570433782,5.1383399209486173E-3,27760,0.78573687213378174]
[null,null,"2024-08-01",0,0.08,21678,21812.055570433782,5.1383399209486173E-3,27760,0.78573687213378174]
[null,null,"2024-09-01",0,0.08,21678,21812.055570433782,5.1383399209486173E-3,27760,0.78573687213378174]
[null,null,"2024-10-01",0,0.08,21678,21812.055570433782,5.1383399209486173E-3,27760,0.78573687213378174]
[null,null,"2024-11-01",0,0.08,21678,21812.055570433782,5.1383399209486173E-3,27760,0.78573687213378174]
[null,null,"2024-12-01",0,0.08,21678,21812.055570433782,5.1383399209486173E-3,27760,0.78573687213378174]
[null,null,"2025-01-01",0,0.08,21678,21845.752518095585,5.1383399209486173E-3,28370,0.77003004998574498]
[null,null,"2025-02-01",0,0.08,21678,21845.752518095585,5.1383399209486173E-3,28370,0.77003004998574498]
[null,null,"2025-03-01",0,0.08,21678,21845.752518095585,5.1383399209486173E-3,28370,0.77003004998574498]
[null,null,"2025-04-01",0,0.08,21678,21845.752518095585,5.1383399209486173E-3,28370,0.77003004998574498]
[null,null,"2025-05-01",0,0.08,21678,21845.752518095585,5.1383399209486173E-3,28370,0.77003004998574498]
[null,null,"2025-06-01",0,0.08,21678,21845.752518095585,5.1383399209486173E-3,28370,0.77003004998574498]
[null,null,"2025-07-01",0,0.08,21678,21845.752518095585,5.1383399209486173E-3,28370,0.77003004998574498]
[null,null,"2025-08-01",0,0.08,21678,21845.752518095585,5.1383399209486173E-3,28370,0.77003004998574498]
[null,null,"2025-09-01",0,0.08,21678,21845.752518095585,5.1383399209486173E-3,28370,0.77003004998574498]
[null,null,"2025-10-01",0,0.08,21678,21845.752518095585,5.1383399209486173E-3,28370,0.77003004998574498]
[null,null,"2025-11-01",0,0.08,21678,21845.752518095585,5.1383399209486173E-3,28370,0.77003004998574498]
[null,null,"2025-12-01",0,0.08,21678,21845.752518095585,5.1383399209486173E-3,28370,0.77003004998574498]
[null,null,"2026-01-01",0,0.08,21678,21882.338769978887,5.1383399209486173E-3,28966,0.75544910481180994]
[null,null,"2026-02-01",0,0.08,21678,21882.338769978887,5.1383399209486173E-3,28966,0.75544910481180994]
[null,null,"2026-03-01",0,0.08,21678,21882.338769978887,5.1383399209486173E-3,28966,0.75544910481180994]
[null,null,"2026-04-01",0,0.08,21678,21882.338769978887,5.1383399209486173E-3,28966,0.75544910481180994]
[null,null,"2026-05-01",0,0.08,21678,21882.338769978887,5.1383399209486173E-3,28966,0.75544910481180994]
[null,null,"2026-06-01",0,0.08,21678,21882.338769978887,5.1383399209486173E-3,28966,0.75544910481180994]
[null,null,"2026-07-01",0,0.08,21678,21882.338769978887,5.1383399209486173E-3,28966,0.75544910481180994]
[null,null,"2026-08-01",0,0.08,21678,21882.338769978887,5.1383399209486173E-3,28966,0.75544910481180994]
[null,null,"2026-09-01",0,0.08,21678,21882.338769978887,5.1383399209486173E-3,28966,0.75544910481180994]
[null,null,"2026-10-01",0,0.08,21678,21882.338769978887,5.1383399209486173E-3,28966,0.75544910481180994]
[null,null,"2026-11-01",0,0.08,21678,21882.338769978887,5.1383399209486173E-3,28966,0.75544910481180994]
[null,null,"2026-12-01",0,0.08,21678,21882.338769978887,5.1383399209486173E-3,28966,0.75544910481180994]
[null,null,"2027-01-01",0,0.08,21678,21921.861139935518,5.1383399209486173E-3,29574,0.74125451883193072]
[null,null,"2027-02-01",0,0.08,21678,21921.861139935518,5.1383399209486173E-3,29574,0.74125451883193072]
[null,null,"2027-03-01",0,0.08,21678,21921.861139935518,5.1383399209486173E-3,29574,0.74125451883193072]
[null,null,"2027-04-01",0,0.08,21678,21921.861139935518,5.1383399209486173E-3,29574,0.74125451883193072]
[null,null,"2027-05-01",0,0.08,21678,21921.861139935518,5.1383399209486173E-3,29574,0.74125451883193072]
[null,null,"2027-06-01",0,0.08,21678,21921.861139935518,5.1383399209486173E-3,29574,0.74125451883193072]
[null,null,"2027-07-01",0,0.08,21678,21921.861139935518,5.1383399209486173E-3,29574,0.74125451883193072]
[null,null,"2027-08-01",0,0.08,21678,21921.861139935518,5.1383399209486173E-3,29574,0.74125451883193072]
[null,null,"2027-09-01",0,0.08,21678,21921.861139935518,5.1383399209486173E-3,29574,0.74125451883193072]
[null,null,"2027-10-01",0,0.08,21678,21921.861139935518,{"$f":"F$2","v":5.1383399209486173E-3},29574,0.74125451883193072]
[null,null,"2027-11-01",0,0.08,21678,{"$f":"IF(I134=I135,G134,G134+(I135-G134)*F$2)","v":21921.861139935518},5.1383399209486173E-3,29574,0.74125451883193072]
[null,null,"2027-12-01",0,0.08,21678,21921.861139935518,5.1383399209486173E-3,29574,0.74125451883193072]
[null,null,"2028-01-01",0,0.08,21678,21964.371339611738,5.1383399209486173E-3,30195,0.72741749758608176]
[null,null,"2028-02-01",0,0.08,21678,21964.371339611738,5.1383399209486173E-3,30195,0.72741749758608176]
[null,null,"2028-03-01",0,0.08,21678,21964.371339611738,5.1383399209486173E-3,30195,0.72741749758608176]
[null,null,"2028-04-01",0,0.08,21678,21964.371339611738,5.1383399209486173E-3,30195,0.72741749758608176]
[null,null,"2028-05-01",0,0.08,21678,21964.371339611738,5.1383399209486173E-3,30195,0.72741749758608176]
[null,null,"2028-06-01",0,0.08,21678,21964.371339611738,5.1383399209486173E-3,30195,0.72741749758608176]
[null,null,"2028-07-01",0,0.08,21678,21964.371339611738,5.1383399209486173E-3,30195,0.72741749758608176]
[null,null,"2028-08-01",0,0.08,21678,21964.371339611738,5.1383399209486173E-3,30195,0.72741749758608176]
[null,null,"2028-09-01",0,0.08,21678,21964.371339611738,5.1383399209486173E-3,30195,0.72741749758608176]
[null,null,"2028-10-01",0,0.08,21678,21964.371339611738,5.1383399209486173E-3,30195,{"$f":"G146/I146","v":0.72741749758608176}]
[null,null,"2028-11-01",0,0.08,21678,21964.371339611738,5.1383399209486173E-3,30195,0.72741749758608176]
[null,null,"2028-12-01",0,0.08,21678,21964.371339611738,5.1383399209486173E-3,30195,0.72741749758608176]
[null,null,"2029-01-01",0,0.08,21678,22009.766664744169,5.1383399209486173E-3,30799,0.71462601593376962]
[null,null,"2029-02-01",0,0.08,21678,22009.766664744169,5.1383399209486173E-3,30799,0.71462601593376962]
[null,null,"2029-03-01",0,0.08,21678,22009.766664744169,5.1383399209486173E-3,30799,0.71462601593376962]
[null,null,"2029-04-01",0,0.08,21678,22009.766664744169,5.1383399209486173E-3,30799,0.71462601593376962]
[null,null,"2029-05-01",0,0.08,21678,22009.766664744169,5.1383399209486173E-3,30799,0.71462601593376962]
[null,null,"2029-06-01",0,0.08,21678,22009.766664744169,5.1383399209486173E-3,30799,0.71462601593376962]
[null,null,"2029-07-01",0,0.08,21678,22009.766664744169,5.1383399209486173E-3,30799,0.71462601593376962]
[null,null,"2029-08-01",0,0.08,21678,22009.766664744169,5.1383399209486173E-3,30799,0.71462601593376962]
[null,null,"2029-09-01",0,0.08,21678,22009.766664744169,5.1383399209486173E-3,30799,0.71462601593376962]
[null,null,"2029-10-01",0,0.08,21678,22009.766664744169,5.1383399209486173E-3,30799,0.71462601593376962]
[null,null,"2029-11-01",0,0.08,21678,22009.766664744169,5.1383399209486173E-3,30799,0.71462601593376962]
[null,null,"2029-12-01",0,0.08,21678,22009.766664744169,5.1383399209486173E-3,30799,0.71462601593376962]
[null,null,"2030-01-01",0,0.08,21678,22057.939800458924,5.1383399209486173E-3,31385,0.70281790028545243]
[null,null,"2030-02-01",0,0.08,21678,22057.939800458924,5.1383399209486173E-3,31385,0.70281790028545243]
[null,null,"2030-03-01",0,0.08,21678,22057.939800458924,5.1383399209486173E-3,31385,0.70281790028545243]
[null,null,"2030-04-01",0,0.08,21678,22057.939800458924,5.1383399209486173E-3,31385,0.70281790028545243]
[null,null,"2030-05-01",0,0.08,21678,22057.939800458924,5.1383399209486173E-3,31385,0.70281790028545243]
[null,null,"2030-06-01",0,0.08,21678,22057.939800458924,5.1383399209486173E-3,31385,0.70281790028545243]
[null,null,"2030-07-01",0,0.08,21678,22057.939800458924,5.1383399209486173E-3,31385,0.70281790028545243]
[null,null,"2030-08-01",0,0.08,21678,22057.939800458924,5.1383399209486173E-3,31385,0.70281790028545243]
[null,null,"2030-09-01",0,0.08,21678,22057.939800458924,5.1383399209486173E-3,31385,0.70281790028545243]
[null,null,"2030-10-01",0,0.08,21678,22057.939800458924,5.1383399209486173E-3,31385,0.70281790028545243]
[null,null,"2030-11-01",0,0.08,21678,22057.939800458924,5.1383399209486173E-3,31385,0.70281790028545243]
[null,null,"2030-12-01",0,0.08,21678,22057.939800458924,5.1383399209486173E-3,31385,0.70281790028545243]
[null,null,"2031-01-01",0,0.08,21678,22109.087145357753,5.1383399209486173E-3,32012,0.69064997955009844]
[null,null,"2031-02-01",0,0.08,21678,22109.087145357753,5.1383399209486173E-3,32012,0.69064997955009844]
[null,null,"2031-03-01",0,0.08,21678,22109.087145357753,5.1383399209486173E-3,32012,0.69064997955009844]
[null,null,"2031-04-01",0,0.08,21678,22109.087145357753,5.1383399209486173E-3,32012,0.69064997955009844]
[null,null,"2031-05-01",0,0.08,21678,22109.087145357753,5.1383399209486173E-3,32012,0.69064997955009844]
[null,null,"2031-06-01",0,0.08,21678,22109.087145357753,5.1383399209486173E-3,32012,0.69064997955009844]
[null,null,"2031-07-01",0,0.08,21678,22109.087145357753,5.1383399209486173E-3,32012,0.69064997955009844]
[null,null,"2031-08-01",0,0.08,21678,22109.087145357753,5.1383399209486173E-3,32012,0.69064997955009844]
[null,null,"2031-09-01",0,0.08,21678,22109.087145357753,5.1383399209486173E-3,32012,0.69064997955009844]
[null,null,"2031-10-01",0,0.08,21678,22109.087145357753,5.1383399209486173E-3,32012,0.69064997955009844]
[null,null,"2031-11-01",0,0.08,21678,22109.087145357753,5.1383399209486173E-3,32012,0.69064997955009844]
[null,null,"2031-12-01",0,0.08,21678,22109.087145357753,5.1383399209486173E-3,32012,0.69064997955009844]
[null,null,"2032-01-01",0,0.08,21678,22163.260215361843,5.1383399209486173E-3,32652,0.67877190418234234]
[null,null,"2032-02-01",0,0.08,21678,22163.260215361843,5.1383399209486173E-3,32652,0.67877190418234234]
[null,null,"2032-03-01",0,0.08,21678,22163.260215361843,5.1383399209486173E-3,32652,0.67877190418234234]
[null,null,"2032-04-01",0,0.08,21678,22163.260215361843,5.1383399209486173E-3,32652,0.67877190418234234]
[null,null,"2032-05-01",0,0.08,21678,22163.260215361843,5.1383399209486173E-3,32652,0.67877190418234234]
[null,null,"2032-06-01",0,0.08,21678,22163.260215361843,5.1383399209486173E-3,32652,0.67877190418234234]
[null,null,"2032-07-01",0,0.08,21678,22163.260215361843,5.1383399209486173E-3,32652,0.67877190418234234]
[null,null,"2032-08-01",0,0.08,21678,22163.260215361843,5.1383399209486173E-3,32652,0.67877190418234234]
[null,null,"2032-09-01",0,0.08,21678,22163.260215361843,5.1383399209486173E-3,32652,0.67877190418234234]
[null,null,"2032-10-01",0,0.08,21678,22163.260215361843,5.1383399209486173E-3,32652,0.67877190418234234]
[null,null,"2032-11-01",0,0.08,21678,22163.260215361843,5.1383399209486173E-3,32652,0.67877190418234234]
[null,null,"2032-12-01",0,0.08,21678,22163.260215361843,5.1383399209486173E-3,32652,0.67877190418234234]
[null,null,"2033-01-01",0,0.08,21678,22220.51540002599,5.1383399209486173E-3,33306,0.66716253527970903]
[null,null,"2033-02-01",0,0.08,21678,22220.51540002599,{"$f":"F$2","v":5.1383399209486173E-3},33306,0.66716253527970903]
[null,null,"2033-03-01",0,0.08,21678,{"$f":"IF(I198=I199,G198,G198+(I199-G198)*F$2)","v":22220.51540002599},5.1383399209486173E-3,33306,0.66716253527970903]
[null,null,"2033-04-01",0,0.08,21678,22220.51540002599,5.1383399209486173E-3,33306,0.66716253527970903]
[null,null,"2033-05-01",0,0.08,21678,22220.51540002599,5.1383399209486173E-3,33306,0.66716253527970903]
[null,null,"2033-06-01",0,0.08,21678,22220.51540002599,5.1383399209486173E-3,33306,0.66716253527970903]
[null,null,"2033-07-01",0,0.08,21678,22220.51540002599,5.1383399209486173E-3,33306,0.66716253527970903]
[null,null,"2033-08-01",0,0.08,21678,22220.51540002599,5.1383399209486173E-3,33306,0.66716253527970903]
[null,null,"2033-09-01",0,0.08,21678,22220.51540002599,5.1383399209486173E-3,33306,0.66716253527970903]
[null,null,"2033-10-01",0,0.08,21678,22220.51540002599,5.1383399209486173E-3,33306,0.66716253527970903]
[null,null,"2033-11-01",0,0.08,21678,22220.51540002599,5.1383399209486173E-3,33306,0.66716253527970903]
[null,null,"2033-12-01",0,0.08,21678,22220.51540002599,5.1383399209486173E-3,33306,0.66716253527970903]
[null,null,"2034-01-01",0,0.08,21678,22280.898522476451,5.1383399209486173E-3,33972,0.65586066532663523]
[null,null,"2034-02-01",0,0.08,21678,22280.898522476451,5.1383399209486173E-3,33972,{"$f":"G210/I210","v":0.65586066532663523}]
[null,null,"2034-03-01",0,0.08,21678,22280.898522476451,5.1383399209486173E-3,33972,0.65586066532663523]
[null,null,"2034-04-01",0,0.08,21678,22280.898522476451,5.1383399209486173E-3,33972,0.65586066532663523]
[null,null,"2034-05-01",0,0.08,21678,22280.898522476451,5.1383399209486173E-3,33972,0.65586066532663523]
[null,null,"2034-06-01",0,0.08,21678,22280.898522476451,5.1383399209486173E-3,33972,0.65586066532663523]
[null,null,"2034-07-01",0,0.08,21678,22280.898522476451,5.1383399209486173E-3,33972,0.65586066532663523]
[null,null,"2034-08-01",0,0.08,21678,22280.898522476451,5.1383399209486173E-3,33972,0.65586066532663523]
[null,null,"2034-09-01",0,0.08,21678,22280.898522476451,5.1383399209486173E-3,33972,0.65586066532663523]
[null,null,"2034-10-01",0,0.08,21678,22280.898522476451,5.1383399209486173E-3,33972,0.65586066532663523]
[null,null,"2034-11-01",0,0.08,21678,22280.898522476451,5.1383399209486173E-3,33972,0.65586066532663523]
[null,null,"2034-12-01",0,0.08,21678,22280.898522476451,5.1383399209486173E-3,33972,0.65586066532663523]
[null,null,"2035-01-01",0,0.08,21678,22344.460308724596,5.1383399209486173E-3,34651,0.64484315917937707]
[null,null,"2035-02-01",0,0.08,21678,22344.460308724596,5.1383399209486173E-3,34651,0.64484315917937707]
[null,null,"2035-03-01",0,0.08,21678,22344.460308724596,5.1383399209486173E-3,34651,0.64484315917937707]
[null,null,"2035-04-01",0,0.08,21678,22344.460308724596,5.1383399209486173E-3,34651,0.64484315917937707]
[null,null,"2035-05-01",0,0.08,21678,22344.460308724596,5.1383399209486173E-3,34651,0.64484315917937707]
[null,null,"2035-06-01",0,0.08,21678,22344.460308724596,5.1383399209486173E-3,34651,0.64484315917937707]
[null,null,"2035-07-01",0,0.08,21678,22344.460308724596,5.1383399209486173E-3,34651,0.64484315917937707]
[null,null,"2035-08-01",0,0.08,21678,22344.460308724596,5.1383399209486173E-3,34651,0.64484315917937707]
[null,null,"2035-09-01",0,0.08,21678,22344.460308724596,5.1383399209486173E-3,34651,0.64484315917937707]
[null,null,"2035-10-01",0,0.08,21678,22344.460308724596,5.1383399209486173E-3,34651,0.64484315917937707]
[null,null,"2035-11-01",0,0.08,21678,22344.460308724596,5.1383399209486173E-3,34651,0.64484315917937707]
[null,null,"2035-12-01",0,0.08,21678,22344.460308724596,5.1383399209486173E-3,34651,0.64484315917937707]
[null,null,"2036-01-01",0,0.08,21678,22411.256362474232,5.1383399209486173E-3,35344,0.634089417227089]
[null,null,"2036-02-01",0,0.08,21678,22411.256362474232,5.1383399209486173E-3,35344,0.634089417227089]
[null,null,"2036-03-01",0,0.08,21678,22411.256362474232,5.1383399209486173E-3,35344,0.634089417227089]
[null,null,"2036-04-01",0,0.08,21678,22411.256362474232,5.1383399209486173E-3,35344,0.634089417227089]
[null,null,"2036-05-01",0,0.08,21678,22411.256362474232,5.1383399209486173E-3,35344,0.634089417227089]
[null,null,"2036-06-01",0,0.08,21678,22411.256362474232,5.1383399209486173E-3,35344,0.634089417227089]
[null,null,"2036-07-01",0,0.08,21678,22411.256362474232,5.1383399209486173E-3,35344,0.634089417227089]
[null,null,"2036-08-01",0,0.08,21678,22411.256362474232,5.1383399209486173E-3,35344,0.634089417227089]
[null,null,"2036-09-01",0,0.08,21678,22411.256362474232,5.1383399209486173E-3,35344,0.634089417227089]
[null,null,"2036-10-01",0,0.08,21678,22411.256362474232,5.1383399209486173E-3,35344,0.634089417227089]
[null,null,"2036-11-01",0,0.08,21678,22411.256362474232,5.1383399209486173E-3,35344,0.634089417227089]
[null,null,"2036-12-01",0,0.08,21678,22411.256362474232,5.1383399209486173E-3,35344,0.634089417227089]
[null,null,"2037-01-01",0,0.08,21678,22481.342001718436,5.1383399209486173E-3,36051,0.62359829135720057]
[null,null,"2037-02-01",0,0.08,21678,22481.342001718436,5.1383399209486173E-3,36051,0.62359829135720057]
[null,null,"2037-03-01",0,0.08,21678,22481.342001718436,5.1383399209486173E-3,36051,0.62359829135720057]
[null,null,"2037-04-01",0,0.08,21678,22481.342001718436,5.1383399209486173E-3,36051,0.62359829135720057]
[null,null,"2037-05-01",0,0.08,21678,22481.342001718436,5.1383399209486173E-3,36051,0.62359829135720057]
[null,null,"2037-06-01",0,0.08,21678,22481.342001718436,5.1383399209486173E-3,36051,0.62359829135720057]
[null,null,"2037-07-01",0,0.08,21678,22481.342001718436,5.1383399209486173E-3,36051,0.62359829135720057]
[null,null,"2037-08-01",0,0.08,21678,22481.342001718436,5.1383399209486173E-3,36051,0.62359829135720057]
[null,null,"2037-09-01",0,0.08,21678,22481.342001718436,5.1383399209486173E-3,36051,0.62359829135720057]
[null,null,"2037-10-01",0,0.08,21678,22481.342001718436,5.1383399209486173E-3,36051,0.62359829135720057]
[null,null,"2037-11-01",0,0.08,21678,22481.342001718436,5.1383399209486173E-3,36051,0.62359829135720057]
[null,null,"2037-12-01",0,0.08,21678,22481.342001718436,5.1383399209486173E-3,36051,0.62359829135720057]